Workbook

Sheet Cover Page
D1: Add company logo
B29: Annual Performance Report 2023
B31: Permit PPC/A/1032878
B33: Dunbar Energy Recovery Facility (ERF)
B37: Viridor Dunbar Waste Services Ltd
B39: Year: | C39: 2023
B41: Address: | C41: Dunbar ERF, Oxwell Mains, Dunbar, East Lothian, EH421SW
B43: Tel: | C43: REDACTED
B45: Email: | C45: REDACTED
B47: Prepared by: | C47: REDACTED | F47: Position: | G47: REDACTED
B49: Approved by: | C49: REDACTED | F49: Position: | G49: REDACTED
B51: Version: | C51: V 1.0
B53: Issue Date: | C53: 31/01/2024

Sheet Contents
A1: =+'Cover Page'!$B$29 -> Annual Performance Report 2023 | E1: =+'Cover Page'!$B$33 -> Dunbar Energy Recovery Facility (ERF)
A3: Contents | K3: Notes:
A4: Section | B4: Subject | H4: Page | K4: Section references and Page nos. to be inserted
B5: Facility Information | H5: 3 | K5: Sections and Subjects may require adjustment by individual operators to meet specific reporting requirements as defined in the sites Permit(s)
B6: Operational Data | H6: 4
B7: SEPA Addendum | H7: 5
B8: Operational Summary | H8: 6
B9: Performance Form 1 | H9: 7
B10: Energy Form 1 | H10: 8
B11: Permit Compliance | H11: 9
B12: Improvements | H12: 10
B13: Public Liasion | H13: 11
B14: Carbon dioxide and nitrous oxide emissions | H14: 12
B15: Residue Quality | H15: 13
B16: Emissions to Water | H16: 14
B17: Emissions to Air (periodically monitored) | H17: 15
B18: Emissions to Air (continuously monitored) | H18: 16
B19: Hydrogen Chloride emissions | H19: 17
B20: Sulphur Dioxdie emsissions | H20: 18
B21: Oxides of Notrigen emissions | H21: 19
B22: Total Organic Carbon emissions | H22: 20
B23: Particulate Matter emissions | H23: 21
B24: Carbon Monoxide emissions | H24: 22
B25: Ammonia emissions | H25: 23
A28: Version Control
A29: Section | B29: Information | H29: Date
A36: Distribution
A37: Copy | B37: Name, Role | H37: No.
A46: This report is required under the Industrial Emissions Directive’s Article 55(2) requirements on reporting and public information on waste incineration plants and co-incineration plants, which require the operator to produce an annual report on the functioning and monitoring of the plant and make it available to the public.

Sheet Facility Info
A1: =+'Cover Page'!$B$29 -> Annual Performance Report 2023 | E1: =+'Cover Page'!$B$33 -> Dunbar Energy Recovery Facility (ERF)
A3: Plant Description and Design | K3: Notes:
A5: Dunbar ERF is constructed at Viridor's existing waste treatment hub in East Lothian and is designed to divert 325kt of waste per year from landfill and contribute to Scottish energy security. Dunbar is a duel-line moving grate fired energy from waste facility and is now permitted to treat 390kt of waste per calendar year following the approval in 2023 of a variation request to uplift the capacity of the facility. The thermal capacity of the plant is 112 MWth with an electrical capacity of 37MW connected to the 33kV distribution network of Scottish Power Energy Network (SPEN). The plant has the capacity to power over 70,000 homes in East Lothian per annum. | K5: Include summary of plant design, design capacity, no. of combustion lines, electrical and heat capacity and any other general information that describes the facility, its location and purpose
A20: Summary of Operational Processes and Procedures
A22: The plant consists of the following units: A waste reception hall comprising common waste reception, inspection and storage area with eight reception bays, one waste storage bunker, two overhead grab cranes and a rejected waste quarantine area with an enclosed process building fitted with automatic, fast acting doors. Two continuous multi-stage air-cooled moving grate incinerators with water-cooled wear zone comprising primary and secondary combustion zones each capable of burning 190,000 tonnes per line per annum. Each incinerator is fed from a waste feeding chute and compromises a hydraulically driven feed grate, air-cooled combustion grate with water-cooled wear zone. Primary air is fed via the underside of the grates and secondary air above the grates via a distribution system. There are hoppers to collect the bottom ash and two gas-oil fire auxiliary burners per line. Two heat recovery lines feed in to one common electricity generation system. Each heat recovery line comprises of a waste heat recovery boiler integrate with the incinerator furnace and fitted with three vertical radiant passes and a fourth horizontal convective section including a superheater, evaporator and economiser bundles. The waste heat boiler produces superheated steam which is passed to a condensing steam turbine and generator (one common unit) capable of generating a total of 37 MW and exporting either 34 MW of electricity without heat export or 28.5MW and up to 17MW of heat as low pressure steam or hot water. Boiler waste treatment compromises of demineralisation and chemical dosing. Two flue gas cleaning and conditioning lines are located within the main boiler building. Each line compromises ammonia Selective Non-Catalytic Reduction (SNCR) system injected in to the first pass for control of NOx emissions, activated carbon injection at the inlet of the bag filter for control of dioxins/fans and heavy metals, dry lime injection are the inlet of the bag filter for abatement of acid gases and fabric bag filtration plant for removal of particulate matter including spent flue gas residues. Each line discharges via a separate flue to a common external stack. The site has appropriate storage and handling of raw materials including storage of activated carbon and lime in silos and ammonia solution and gas oil in external bulk storage tanks. Ash residues treatment and storage compromising hoppers, screw conveyors, bottom ash quench system and storage areas for fly ash (consisting of dust from boiler passes and residues from flue gas treatment) and bottom ash. Blow down from the boiler is collected in a process water tank to re-use as required. CEMS system is installed for monitoring of emissions. Analysers are provided and maintained by SICK (UK) Ltd and an Envirosoft data handling system. Dunbar ERF is part of the Viridor management system which is a suite of documentation that both the site and the business are governed by. This includes policies and procedures, ERF Management Instructions (EMI), Local Management Instructions (LMI) and safe operating procedures and risk assessments which cover all activities that are carried out on the site. EMIs and LMIs in particular cover the site's operational, maintenance, environmental and health and safety responsibilities. Maintenance of the plant is managed via the Computerised Maintenance Management System (CMMS). | K22: Include summary of key processes and procedures such as (but not limited to); waste reception, control rooms, grate, bed and boiler, energy & heat generation, cooling systems, residue management, emission controls, plant monitoring, health and safety systems, maintenance

Sheet Operational Data
A1: =+'Cover Page'!$B$29 -> Annual Performance Report 2023 | E1: =+'Cover Page'!$B$33 -> Dunbar Energy Recovery Facility (ERF)
A3: Operational Data
A4: Plant Size | B4: 390000 | D4: tonnes pa | E4: 112.14 | F4: MWth | G4: 33 | H4: MWe | J4: Notes:
A5: No. of combustion lines | B5: 2 | D5: No. of Turbines: | F5: 1 | J5: * - RDF to include SRF
J6: ** - Combusted tonnage = tonnes delivered in period + (tonnes in bunker at start of period – tonnes in bunker at end of period), or equivalent calculation depending on plant type
A7: Waste types received | B7: Unit | C7: Q1 | D7: Q2 | E7: Q3 | F7: Q4 | G7: Year Total | H7: %
A8: Household / Local Authority | B8: tonnes | C8: 28442.76 | D8: 33549 | E8: 34842 | F8: 31506 | G8: =SUM(C8:F8) -> 128339.76 | H8: =IF(G8>0,G8/$G$17,"-") -> 0.3544258437
A9: Commercial & Industrial | C9: 18957.84 | D9: 16591 | E9: 19022 | F9: 19613 | G9: =SUM(C9:F9) -> 74183.84 | H9: 0.2048676893 | J9: *** - CHP plants only
A10: Hazardous | C10: 0 | D10: 0 | E10: 0 | F10: 0 | G10: 0 | H10: - | J10: **** Availability Definition: 'the availability of a line is to be calculated by the number of hours the line reported Continuously Monitored emission levels to the Regulator through the calendar year divided by the total number of hours in that year. The overall plant availability is calculated as the Mean of all lines in the plant. For clarity this includes periods of abnormal operation.' Rationale: The primary function of an Energy from Waste facility is the disposal of waste. It follows therefore that the availability of a plant is determined by the period of time a facility spends undertaking this activity.
A11: Clinical | C11: 706 | D11: 568 | E11: 670 | F11: 842 | G11: 2786 | H11: 0.007693877568
A12: Waste wood (biomass) | C12: 0 | D12: 0 | E12: 0 | F12: 0 | G12: 0 | H12: -
A13: Refuse Derived Fuel * - H'hold/LA | C13: 36247.28 | D13: 38804 | E13: 37663 | F13: 37090 | G13: =SUM(C13:F13) -> 149804.28 | H13: 0.4137027241
A14: Refuse Derived Fuel * - C&I | C14: 21.22 | D14: 89 | E14: 144 | F14: 123 | G14: 377.22 | H14: 0.001041738872
A15: Transfer Station Organics | C15: 365 | D15: 0 | E15: 650 | F15: 1051 | G15: 2066 | H15: 0.00570551007
A16: Digestate Anaerobic Treatment | C16: 589 | D16: 1501 | E16: 1292 | F16: 1167 | G16: 4549 | H16: 0.01256261632
A17: Total waste received | C17: =SUM(C8:C16) -> 85329.1 | D17: =SUM(D8:D16) -> 91102 | E17: =SUM(E8:E16) -> 94283 | F17: =SUM(F8:F16) -> 91392 | G17: 362106.1
A18: Rejected Waste | C18: 0 | D18: 0 | E18: 0 | F18: 0 | G18: =SUM(C18:F18) -> 0 | H18: =IF(G18>0,G18/$G$17,"-") -> -
A19: Unprocessed waste transferred out | C19: 0 | D19: 0 | E19: 0 | F19: 0 | G19: =SUM(C19:F19) -> 0 | H19: =IF(G19>0,G19/$G$17,"-") -> -
A20: Total waste combusted ** | C20: 84225 | D20: 89202 | E20: 93461 | F20: 89078 | G20: =SUM(C20:F20) -> 355966
J21: Password for protected cells A password has been set to prevent accidental editing of cells with formulae. If you still need to make an edit for some reason then the password = 1234
A22: Energy Usage / Export | B22: Unit | C22: Q1 | D22: Q2 | E22: Q3 | F22: Q4 | G22: Year Total | H22: KWh/te
A23: Power Generated | B23: MWh | C23: 71169 | D23: 74841 | E23: 77870 | F23: 72102 | G23: =SUM(C23:F23) -> 295982 | H23: =IF(G23>0,G23*1000/$G$20,"-") -> 831.4895243
A24: Power Exported | C24: 65267 | D24: 68985 | E24: 71725 | F24: 66185 | G24: =SUM(C24:F24) -> 272162 | H24: =IF(G24>0,G24*1000/$G$20,"-") -> 764.573021
A25: Power Used on site | C25: 5902 | D25: =D23-D24 -> 5856 | E25: =E23-E24 -> 6145 | F25: =F23-F24 -> 5917 | G25: =SUM(C25:F25) -> 23820 | H25: =IF(G25>0,G25*1000/$G$20,"-") -> 66.91650326
A26: Power Imported | C26: 0 | G26: =SUM(C26:F26) -> 0 | H26: =IF(G26>0,G26*1000/$G$20,"-") -> -
A27: Parasitic Load | B27: % | C27: =IF(C23>0,1-C24/(C23+C26),"-") -> 0.08292936531 | D27: =IF(D23>0,1-D24/(D23+D26),"-") -> 0.07824588127 | E27: =IF(E23>0,1-E24/(E23+E26),"-") -> 0.07891357391 | F27: =IF(F23>0,1-F24/(F23+F26),"-") -> 0.0820642978 | G27: =IF(G23>0,1-G24/(G23+G26),"-") -> 0.0804778669
A28: Thermal Energy Produced *** | B28: MWh | C28: 0 | D28: 0 | E28: 0 | F28: 0 | G28: =SUM(C28:F28) -> 0 | H28: =IF(G28>0,G28*1000/$G$20,"-") -> -
A29: Thermal Energy Exported *** | C29: 0 | D29: 0 | E29: 0 | F29: 0 | G29: =SUM(C29:F29) -> 0 | H29: =IF(G29>0,G29*1000/$G$20,"-") -> -
A30: R1 value (if applicable) | B30: R1 | G30: 0.83
A32: Waste Disposal & Recovery | B32: Unit | C32: Q1 | D32: Q2 | E32: Q3 | F32: Q4 | G32: Year Total | H32: % inputs
A33: APC Residues - produced | B33: tonnes | C33: 1910 | D33: 2191 | E33: 2213 | F33: 2069 | G33: =SUM(C33:F33) -> 8383 | H33: =IF(G33>0,G33/$G$20,"-") -> 0.02355000197
A34: IBA - produced | C34: 15906 | D34: 18528 | E34: 18146 | F34: 16492 | G34: =SUM(C34:F34) -> 69072 | H34: =IF(G34>0,G34/$G$20,"-") -> 0.1940410039
A35: Metals recycling | C35: 978 | D35: 1070 | E35: 1166 | F35: 1001 | G35: =SUM(C35:F35) -> 4215 | H35: =IF(G35>0,G35/$G$20,"-") -> 0.01184101852
A36: Proces Water - removed | C36: 2502 | D36: 1911 | E36: 1198 | F36: 1207 | G36: =SUM(C36:F36) -> 6818 | H36: =IF(G36>0,G36/$G$20,"-") -> 0.01915351466
A38: Raw Material Usage | B38: Unit | C38: Q1 | D38: Q2 | E38: Q3 | F38: Q4 | G38: Year Total | H38: kg or Ltr /te
A39: Mains Water | B39: ltrs | C39: 5625000 | D39: 5983250 | E39: 5828820 | F39: 6383880 | G39: =SUM(C39:F39) -> 23820950 | H39: =IF(G39>0,G39/$G$20,"-") -> 66.91917206
A40: Harvested Rain Water | B40: ltrs | C40: 71000 | D40: 71000 | E40: 71000 | F40: 71000 | G40: 284000 | H40: =IF(G40>0,G40/$G$20,"-") -> 0.7978290061
A41: Ammonia | B41: kgs | C41: 66698.13 | D41: 55931.362 | E41: 80006.31 | F41: 80356.57 | G41: 282992.372 | H41: 0.7949983201
A42: Urea | B42: kgs | D42: 0 | E42: 0 | F42: 0 | G42: =SUM(C42:F42) -> 0 | H42: -
A43: Activated Carbon | B43: kgs | C43: 23871.97 | D43: 22265.32 | E43: 20639.242 | F43: 20639.242 | G43: 87415.774 | H43: 0.2455733806
A44: Lime / hydrated lime | B44: kgs | C44: 1133762.7 | D44: 1133270.6 | E44: 981027.4 | F44: 981027.4 | G44: 4229088.1 | H44: 11.88059562
A45: Furnace Flame Fuel | B45: ltrs | C45: 109979 | D45: 81961.278 | E45: 46941.425 | F45: 118638.598 | G45: 357520.301 | H45: 1.004366431
A46: Gas | B46: cuf | C46: 0 | D46: 0 | E46: 0 | F46: 0 | G46: 0
A47: Other | G47: 0
A49: Summary | B49: Line/Unit | C49: Q1 | D49: Q2 | E49: Q3 | F49: Q4 | G49: Year Total | I49: Hrs in year
A50: Availability of waste combustion by line, hrs **** | B50: 1 | C50: 1978 | D50: 2137 | E50: 2164 | F50: 2081 | G50: =SUM(C50:F50) -> 8360 | H50: =+G50/$I$50 -> 0.9543378995 | I50: 8760
B51: 2 | C51: 2190 | D51: 2166 | E51: 2190 | F51: 2010 | G51: 8556 | H51: =+G51/$I$50 -> 0.9767123288
A52: Overall Availability, mean avg. of all lines, hrs | G52: =AVERAGE(G50:G51) -> 8458 | H52: =+G52/$I$50 -> 0.9655251142
A53: Hours of turbine operations, hrs | B53: 1 | C53: 2190 | D53: 2190 | E53: 2186 | F53: 2190 | G53: 8756 | H53: =+G53/$I$50 -> 0.999543379
A54: Hours of heat / steam export | G54: 0 | H54: =IF(B54>0,#REF!/I50,"n/a") -> n/a
A55: Net Calorific Value of waste | B55: MJ/kg | C55: 9.96 | D55: 9.97 | E55: 9.92 | F55: 9.61 | G55: =AVERAGE(C55:F55) -> 9.865
A56: Abnormal Events | B56: qty. | F56: 3 | G56: 3 | H56: =IF(G56>0,"yes","no") -> yes
A57: Abnormal operation | B57: hours | F57: 1.5 | G57: 1.5 | H57: =+(G57)/I50 -> 0.0001712328767

Sheet SEPA Addendum
A1: =+'Cover Page'!$B$29 -> Annual Performance Report 2023 | E1: =+'Cover Page'!$B$33 -> Dunbar Energy Recovery Facility (ERF)
A3: Additional Operational Data for SEPA
A5: a) Report required under Condition 5.2.4 - Non-utilisation of Heat Recovery System
A6: Start of period | C6: End of period | E6: Duration | F6: Brief details of cause of period of non-utilisation and how
A7: Date | B7: Time | C7: Date | D7: Time | E7: hours: minutes (XX:XX) | F7: this was resolved
A8: 2023-09-06 | B8: 00:01:00 | C8: 2023-09-06 | D8: 23:59:00 | E8: 10:12:00 | F8: Recovery from electrical issues following a grid disturbance - trips reset no further issues.
A9: 25/7/2023 | B9: 00:01:00 | C9: 25/7/2023 | D9: 23:59:00 | E9: 01:15:00 | F9: High level trip in MP Hotwell - trip reset no further issues
A10: 2023-06-09 | B10: 00:01:00 | C10: 2023-06-09 | D10: 23:59:00 | E10: 03:30:00 | F10: Defective boiler drum level switch - switch repaired no further issues
A11: 22/9/2023 | B11: 00:01:00 | C11: 22/9/2023 | D11: 23:59:00 | E11: 0.45 | F11: Spurious trip on boiler drum - trip reset no further action required
A12: 20/10/2023 | B12: 00:01:00 | C12: 20/10/2023 | D12: 23:59:00 | E12: 00:30:00 | F12: Turbine trip due to steam flow issues when shutting down Line 1 - turbine reset and restarted.
D18: TOTAL
A20: b) Additional Energy Data for calendar year
A22: The plant met energy recovery efficiency targets as shown in the table below: | F22: NOTE - For plants not required to complete an Annual Heat and Power Plan
A23: Energy Recovery Efficiency Target | C23: Target | D23: 2023 Actual | E23: 2022 Actual | F23: Operator comments | G23: * - TTWG means SEPA Thermal Treatment of Waste Guidelines 2014
A24: TTWG* Start Up Target | C24: 0.2 | D24: % | E24: % | F24: N/A Heat & Power plan to be submitted
C25: (gross CV basis)
A27: Operator’s comments :
A28: N/A Heat & Power plan to be submitted

Sheet Operational Summary
A1: =+'Cover Page'!$B$29 -> Annual Performance Report 2023 | E1: =+'Cover Page'!$B$33 -> Dunbar Energy Recovery Facility (ERF)
A3: Summary of Plant Operations and Maintenance during the reporting year | K3: Notes:
A5: There was no major planned outage period for the facility during 2023 and overall the plant performed well during this period. Notable periods of unplanned downtime on Line 1 included, Hydraulic pump issues that effected the availability of the Grate system, as well as two boiler tube leaks repairs. All defects were successfully rectified by the Viridor Engineering team supported by specialist contractors. Notable periods of unplanned downtime on Line 2 included, a blockage in the conditioning tower due to issues with the water injection system, as well as blockages and defects in the fly ash transportation system that required offline repairs. All defects were successfully rectified by the Viridor Engineering team supported by specialist contractors. The turbine and generator remained available throughout the 12 month period, however the plant export was effect on occasions due to power interruptions on the network. All planned maintenance was completed during the 12 month period with the support of OEM and specialist contractors, Viridor maintain a robust level of routine and breakdown coverage service agreements to ensure the plant and equipment is adequately supported. An assurance inspection visit was conduct by FM Global resulting in an overall improvement in the risk index score for the site, with cyber security and operational maintenance practices highlighted as areas of improvement. Planned Lifecycle maintenance items continue to be completed in line with the facilities Lifecycle maintenance plan, notable items completed during 2023 were the major overall or replacement of waste crane and ash crane grabs. The activated carbon transportation system was also upgraded to address potential degradation issues and the weighbridge accounting system was replaced as part of a Viridor fleetwide project. The next major planned shutdown remains scheduled for May 2024. | K5: Include summary of key operational and/or maintenance activity undertaken in the year, such as any major component upgrades and/or replacements and a summary of breakdowns and unplanned shutdowns
A29: Summary of Residue Handling for the reporting year
A31: Incinerator Bottom Ash (IBA) - IBA is managed by RockSolid Processing Ltd, a Dutch IBA processing company. The reprocessing takes place in a batch process twice per year in two separate campaigns of a minimum of 30,000 tonnes each and is undertaken on a mobile basis on the permitted location in Cowdenbeath, owned and operated by Colliers. Once the IBA is produced in the bunker at Dunbar ERF, RockSolid’s appointed haulier loads and transports the material, via Viridor’s weighbridge, to the storage a and processing location in Cowdenbeath daily (Monday-Friday). At Cowdenbeath, the IBA is bulked up and managed in to windrows until the IBA is assessed as non-hazardous, based on ESA protocol testing results, before being moved to the main stockpile. Once approximately 30,000 tonnes are held in the stockpile, RockSolid and their appointed contractors begin processing the IBA over a period of approximately 35 working days. During the process, ferrous and non-ferrous metals will be recovered along with Incinerator Bottom Ash Aggregates (IBAA). This is then by used by Collier Quarrying & Recycling Ltd as aggregate material under a separate contract. Two successful processing campaigns were carried out in 2023, with significant amounts of non-ferrous metals being recovered and reprocessed. Air Pollution Control Residues (APCR) - APCR continues to be processed at Augean PLC's hazardous landfill in Port Clarence, Middlesbrough. Oversized Metal - Oversized metal is taken to EMR's facility in Bellshill, near Glasgow, where it is recycled and reused in various industries. | K31: Include in here a summary of residue handling regimes and destinations for each residue stream

Sheet Perf. Form 1
A1: =+'Cover Page'!C39 -> 2023 | B1: Annual Reporting Performance Form 1
A3: =+'Cover Page'!B31 -> Permit PPC/A/1032878 | F3: Operator: | G3: Viridor Dunbar Waste Services Ltd
A4: Facility: | B4: =+'Cover Page'!B33:I33 -> Dunbar Energy Recovery Facility (ERF) | F4: Form: | G4: Performance 1
A6: Reporting Period from: | D6: 2023-01-01 | F6: to: | G6: 31/12/2023
A8: =+A1 -> 2023 | B8: Annual Reporting of Waste Disposal and Recovery
A9: Waste Description | C9: Disposal Route(s) | E9: Disposal Tonnes | G9: Recovery Tonnes | I9: % / tonne of waste incinerated
A10: 1) Hazardous Wastes
A11: APC Residues | C11: Hazardous Landfill | E11: ='Operational Data'!G33 -> 8383 | G11: 0 | I11: =IF((E11+G11)>0,(E11+G11)/'Operational Data'!$G$20, "-") -> 0.02355000197
A12: IBA | E12: 0 | G12: 0 | I12: =IF((E12+G12)>0,(E12+G12)/'Operational Data'!$G$20, "-") -> -
I13: =IF((E13+G13)>0,(E13+G13)/'Operational Data'!$G$20, "-") -> -
I14: =IF((E14+G14)>0,(E14+G14)/'Operational Data'!$G$20, "-") -> -
A15: Total Hazardous Waste | E15: =SUM(E11:F14) -> 8383 | G15: =SUM(G11:H14) -> 0 | I15: =IF((E15+G15)>0,(E15+G15)/'Operational Data'!$G$20, "-") -> 0.02355000197
A17: 2) Non-Hazardous Wastes
A18: IBA | C18: Reprocessing | E18: ='Operational Data'!G34 -> 69072 | I18: =IF((E18+G18)>0,(E18+G18)/'Operational Data'!$G$20, "-") -> 0.1940410039
A19: Ferrous Metal | C19: Recycling | E19: ='Operational Data'!G35 -> 4215 | I19: =IF((E19+G19)>0,(E19+G19)/'Operational Data'!$G$20, "-") -> 0.01184101852
A20: Process Water | C20: Disposal | E20: 6817.72 | I20: =IF((E20+G20)>0,(E20+G20)/'Operational Data'!$G$20, "-") -> 0.01915272807
I21: =IF((E21+G21)>0,(E21+G21)/'Operational Data'!$G$20, "-") -> -
I22: =IF((E22+G22)>0,(E22+G22)/'Operational Data'!$G$20, "-") -> -
A23: Total Non-Hazardous Waste | E23: =SUM(E18:F22) -> 80104.72 | G23: =SUM(G18:H22) -> 0 | I23: =IF((E23+G23)>0,(E23+G23)/'Operational Data'!$G$20, "-") -> 0.2250347505
A24: TOTAL WASTE | E24: =+E23+E15 -> 88487.72 | G24: =+G23+G15 -> 0 | I24: =IF((E24+G24)>0,(E24+G24)/'Operational Data'!$G$20, "-") -> 0.2485847525
A26: Operator’s comments :
A31: =+A1 -> 2023 | B31: Annual Reporting of Water and Other Raw Material Usage
A32: Raw Material | E32: Usage | G32: Unit | H32: Specific Usage | J32: Unit
A33: Mains Water | E33: =+'Operational Data'!G39 -> 23820950 | G33: m3 | H33: =IF(E33>0,E33/'Operational Data'!$G$20,"-") -> 66.91917206 | J33: m3/te
A34: Total Water | E34: =+'Operational Data'!G40+'Operational Data'!G39 -> 24104950 | G34: m3 | H34: =IF(E34>0,E34/'Operational Data'!$G$20,"-") -> 67.71700106 | J34: m3/te
A35: Ammonia | E35: ='Operational Data'!G41 -> 282992.372 | G35: kg | H35: =IF(E35>0,E35/'Operational Data'!$G$20,"-") -> 0.7949983201 | J35: kg/te
A36: Activated Carbon | E36: =+'Operational Data'!G43 -> 87415.774 | G36: kg | H36: =IF(E36>0,E36/'Operational Data'!$G$20,"-") -> 0.2455733806 | J36: kg/te
A37: Hydrated lime | E37: =+'Operational Data'!G44 -> 4229088.1 | G37: kg | H37: =IF(E37>0,E37/'Operational Data'!$G$20,"-") -> 11.88059562 | J37: kg/te
A39: Operator’s comments :
A40: Optimisation of raw material usage is an on-going project at Dunbar ERF. Improvements to the reject water system have resulted in an overall reduction of mains water usage.
A43: =+A31 -> 2023 | B43: Annual Reporting of other performance indicators
A44: Parameter | C44: Results by Line
C45: A1 | D45: A2 | I45: Turbine 1
A46: Operating hours for the year, hours | C46: ='Operational Data'!G50 -> 8360 | D46: ='Operational Data'!G51 -> 8556 | I46: ='Operational Data'!G53 -> 8756
A47: Number of periods of abnormal operation, qty. | C47: 0 | D47: 3 | I47: 0
A48: Cumulative hours of abnormal operation for this year, hours | C48: 0 | D48: 1.5 | I48: 0
A50: Operator’s comments : | L50: Where there has been any exceedance of the 60 hour AO limit provide the notification date and a summary of the cause and actions in this box.
A51: Periods of Abnormal operation detailed in permit compliance section of the report.
A54: Signed: | B54: REDACTED | G54: Date: | H54: 31/01/2024

Sheet Energy Form 1
A1: =+'Cover Page'!C39 -> 2023 | B1: Annual Reporting of Energy Usage/Export
A3: =+'Cover Page'!B31 -> Permit PPC/A/1032878 | F3: Operator: | G3: Viridor Dunbar Waste Services Ltd
A5: Facility: | B5: =+'Cover Page'!B33:I33 -> Dunbar Energy Recovery Facility (ERF) | F5: Form: | G5: Energy 1
A7: Reporting Period from: | D7: 2023-01-01 | F7: to: | G7: =+'Perf. Form 1'!G6:H6 -> 31/12/2023
A9: Energy Source | D9: Energy Usage | F9: Unit | G9: Specific Usage (KWh/tonne incinerated
A10: Electricity Produced | D10: =+'Operational Data'!G23 -> 295982 | F10: MWh | G10: =+'Operational Data'!H23 -> 831.4895243
A11: Electricity Imported | D11: =+'Operational Data'!G26 -> 0 | F11: MWh | G11: =+'Operational Data'!H26 -> -
A12: Electricity Exported | D12: =+'Operational Data'!G24 -> 272162 | F12: MWh | G12: =+'Operational Data'!H24 -> 764.573021
A13: Furnace Flame Fuel | D13: 294 | F13: tonnes
A14: Steam/hot water exported | D14: =+'Operational Data'!G29 -> 0 | F14: GWh | G14: =+'Operational Data'!H29 -> -
A18: Operator’s comments :
A29: Signed: | B29: REDACTED | G29: Date: | H29: 31/01/2024

Sheet Permit Compliance
A1: =+'Cover Page'!$B$29 -> Annual Performance Report 2023 | E1: =+'Cover Page'!$B$33 -> Dunbar Energy Recovery Facility (ERF)
A3: Summary of Permit Compliance
A5: Compliance with permit limits for continuously monitored pollutants
A7: The plant met its emission limits as shown in the table below:
A8: Substance | C8: Percentage time compliant during operationNote 1 | L8: Notes:
C9: Half-hourly limit | F9: Daily limit | L9: Note 1: Please report to 2 decimal places, i.e. xx.xx% Note 2: Please provide a brief summary of each notification or non-compliance in the table (rather than just referring to notifications that were sent to the Regulator), including stating the value of measured result for any ELV exceedances.
A10: Particulates | C10: 1 | F10: 1
A11: Oxides of nitrogen | C11: 1 | F11: 1
A12: Sulphur dioxide | C12: 0.9999 | F12: 1
A13: Carbon monoxide | C13: 100.00% | F13: 1
A14: Total organic carbon | C14: 1 | F14: 1
A15: Hydrogen chloride | C15: 0.9999 | F15: 1
A16: Hydrogen fluoride | C16: 1 | F16: 1
A17: Ammonia | C17: 1 | F17: 1
A19: Summary of any notifications or non-compliances under the permit
A20: Date | B20: Summary of notification or non-compliance [including Line/Reference]Note 2 | E20: Reason | H20: Measures taken to prevent reoccurrence
A21: 2023-10-02 | B21: Exceedance of the hour-hourly Emissions Limit Value (ELV) for Sulphur Dioxide (SO2) on Line 2 | E21: Plaster board identified as non-conforming waste | H21: Waste inspection visit conducted of supplier identified.
A22: 2023-11-14 | B22: Two consecutive exceedances of the half-hourly Emissions Limit Value (ELV) for Hydrogen Chloride (HCl) on Line 2 | E22: Blockage of Lime hoses | H22: Revised PPMs, and improved visual indiction on control room screens
A23: 2023-12-26 | B23: Exceedence of daily limited of dust indicated on Line 2 analyser 1 | E23: False reading suspected on analyser due to contamination | H23: 2nd annalyser indicated all readings were below ELV.
A27: Summary of any complaints received and actions to taken to resolve them.
A28: Date | B28: Summary of complaint [including Line/Reference] | E28: Reason * | H28: Measures taken to prevent reoccurrence
B29: Nil
E34: * including whether substantiated by the operator or SEPA

Sheet Improvements
A1: =+'Cover Page'!$B$29 -> Annual Performance Report 2023 | E1: =+'Cover Page'!$B$33 -> Dunbar Energy Recovery Facility (ERF)
A3: Summary of Plant Improvements
A5: Summary of any efficiency improvements that have been completed within the year.
A6: Purchase of an additional spare ash crane grab, to allow off site overhaul of existing grabs in order to improve bunker management. On-going overhaul of waste crane grabs to improve reliability and waste delivery efficiecy. Improved management of reject water pit to reduce the quantity of water being removed from site by tankers.
A16: Summary of any permit improvement conditions that have been completed within the year and the resulting environmental benefits.
A17: Specialist contractor review of SNCR system installation and performance to ensure optimisation of the system in line with new ELVs. Replacement of PAC delivery hoses on both lines to eliminate system leaks.
A27: Summary of any changes to the plant or operating techniques which required a variation to the permit and a summary of the resulting environmental impact.
A28: Permit variation approved to increase waste throughput capacity of the facility. Permit updated to detail new Emmisions Limit Values in line with BREF report. Carbon Dioxide now continously monitored and reported as part of CEMS readings. Hydrated lime system upgrades completed to distribution hoses, system capable of delivering 900kg/h.
A38: Summary of any other improvements made to the plant or planned to be made and a summary of the resulting environmental benefits.
A39: 100% replacement of flue gas treatmant plant fabric filter bags planned for the 2024 outage in May.

Sheet Public Liasion
A1: =+'Cover Page'!$B$29 -> Annual Performance Report 2023 | E1: =+'Cover Page'!$B$33 -> Dunbar Energy Recovery Facility (ERF)
A3: Details of Public & Stakeholder Liasion
A5: Summary of events held during the reporting year.
A6: Date | C6: Description
A7: 23/02/2023 | C7: Community Liason Group meeting at site
A9: 24/05/2023 | C9: Community Liason Group meeting at site
A11: 23/08/2023 | C11: Community Liason Group meeting at site
A13: 22/11/2023 | C13: Community Liason Group meeting at site
A16: List of events planned for next year
A17: Date | C17: Description
A18: 20/03/2024 | C18: Community Liason Group meeting at site
A20: 16/062024 | C20: Community Liason Group meeting at site
A22: 18/09/2024 | C22: Community Liason Group meeting at site
A24: 18/12/2024 | C24: Community Liason Group meeting at site
A29: If you wish to be involved in the public liasion programme, please contact REDACTED@viridor.co.uk

Sheet CO2 N2O
A1: =+'Cover Page'!$B$29 -> Annual Performance Report 2023 | C1: =+'Cover Page'!$B$33 -> Dunbar Energy Recovery Facility (ERF)
A3: Carbon dioxide emissions and biogenic content of waste inputs | F3: Notes:
A5: Carbon dioxide emissions (all types of plant)
B6: Annual mass of carbon dioxide released | C6: tonnes | D6: 468026
B7: Annual mass of carbon dioxide released per tonne of waste burned | C7: t CO2 / t waste | D7: 1.31
B8: Annual mass of carbon dioxide released per MWh of energy exported | C8: t CO2 / MWh export | D8: =D6/'Operational Data'!G24 -> 1.719659614
B9: Description of how annual carbon dioxide mass emission has been calculated. See Note 1 | C9: Readings taken from mass release data produced by the CEMS | F9: Note 1: Where available, data from CO2 CEMS should be used. Otherwise, only where no CEMS data is available, a suitable emissions factor should be used based on the tonnage of waste burned e.g.0.942 tCO2/t waste as per Tolvik report 2022, or other justified emissions factor - refer to embedded Environment Agency guidance note above or updated version for suitable descriptive text.
A10: Nitrous oxide emissions (only plants which use ammonia or urea to abate NOx emissions)
B11: Annual mass emissions of nitrous oxide | C11: tonnes N2O | D11: 0.53
B12: Description of how annual nitrous oxide mass emission has been calculated See Note 2 | C12: Readings taken from mass release data produced by the CEMS | F12: Note 2: Where available, data from N2O CEMS should be used. If no CEMS data is available, from periodic monitoring. Otherwise, a suitable emissions factor should be used based on the tonnage of waste burned e.g. 0.0981 kgN20/t waste as per 2021 Pollution Inventory data for plants with urea-based SNCR - refer to embedded Environment Agency guidance note above or updated version for suitable descriptive text.
A13: Total annual carbon dioxide and nitrous oxide emissions. See Note 3. | C13: tonnes CO2e | D13: =D6+(D11*298) -> 468183.94 | F13: Note 3: Total annual carbon dioxide and nitrous oxide emissions reported as carbon dioxide equivalent where 1 tonne nitrous oxide is equivalent to 298 tonne carbon dioxide
A14: Biogenic CO2 emissions (See Note 4) | F14: Note 4: Only plants combusting residual municipal waste, refuse derived fuel or solid recovered fuel
B15: Percentage of total carbon dioxide emissions arising from biogenic waste | C15: % | D15: 0.57
B16: No. of measurements undertaken | C16: Number | D16: 4
B17: Description of how percentage biogenic carbon dioxide emissions have been measured or calculated. See Note 5 | C17: Samples provided to a 3rd party UKAS accredited laboratory. Samples prepared using UKAS accredited methods in accordance with UKAS schedule No.0001 | F17: Note 5: Examples include direct measurement via C14 method or BIOMA software - refer to embedded Environment Agency guidance note above or updated version for suitable descriptive text, quoting standards where relevant. Otherwise, as an approximation (and in lieu of any more accurate metrics which may be developed in future), the measured or estimated biogenic fraction by net calorific value can be assumed to be the same as the biogenic CO2 fraction of the total CO2 emissions from the plant.
A18: Biogenic fraction of waste feedstock (See Note 4)
B19: Yearly average biogenic percentage of the waste by net calorific value (NCV) | C19: % | D19: 57
B20: If sampling undertaken, no. of samples used to ascertain average biogenic % above | C20: Number | D20: 4
B21: Description of how biogenic percentage (by NCV) has been calculated or estimated. See Note 6 | C21: Samples provided to a 3rd party UKAS accredited laboratory. Samples prepared using UKAS accredited methods in accordance with UKAS schedule No.0001 | F21: Note 6: Where available, data from waste sampling should be used; otherwise, an estimated figure with justification can be used, or a figure assumed on the basis of a national average e.g. 2017 WRAP data for residual waste of 51.8% biogenic energy content - refer to embedded Environment Agency guidance note above or updated version for suitable descriptive text, quoting standards where relevant.
B23: Comments:

Sheet Residue Quality
A1: =+'Cover Page'!$B$29 -> Annual Performance Report 2023 | E1: =+'Cover Page'!$B$33 -> Dunbar Energy Recovery Facility (ERF)
A3: Residue Quality Monitoring Requirements
A5: Summary of monitoring undertaken and compliance
A6: Incinerator Bottom Ash (IBA) is sampled and analysed twice per month as per the ESA ash sampling protocol. A full hazard characterisation report is done annually in February each year.
A8: Air Pollution Control Residue (APCR) is sampled and analysed on a quarterly basis. The site PPC permit requests analysis of mercury, cadmium, dioxins and furans, heavy metals, free lime and moisture.
A13: Commentary on any specific events
A14: Date & Event | C14: Description
A27: Residue Quality Monitoring Results
A28: Parameter (unit) | C28: Limit | D28: Normal Operation
D29: Bottom ash | F29: APC Residues
A30: Loss on Ignition (average %) | C30: <5% | D30: 2.65
A31: Total Organic Carbon (average %) | C31: <3% | D31: 1.04
A32: No. of Assessments Undertaken | C32: --- | D32: 24 | F32: 4
A33: No. of Hazardous Results | C33: --- | D33: 0
A35: Comments :
A36: Results above are an average taken over the 24 results over the calendar year.

Sheet Water
A1: =+'Cover Page'!$B$29 -> Annual Performance Report 2023 | E1: =+'Cover Page'!$B$33 -> Dunbar Energy Recovery Facility (ERF)
A3: Emissions to Water
A5: Summary of monitoring undertaken and compliance
A6: Surface water is sampled and analysed weekly by Viridor's chosen contractor. The water is taken from an auto sampling station in the North East corner of the site (SW1) which samples the water prior to it flowing through the penstock valve and off site via the outfall.
A8: There were no events during the calendar year, pollution or otherwise, to the water system to report on.
A13: Commentary on any specific events
A14: Date & Event | B14: Description
A15: N/A
A17: Emissions to Water / Sewer
A18: Parameter | B18: Monitoring Frequency | C18: Limit | D18: Target | E18: Max. | F18: Average | G18: Units
A19: pH | B19: Weekly | C19: No Limit set | D19: 6 - 9 | E19: 8.4 | F19: 8 | G19: PH Scale
A20: Suspended Solids | B20: Weekly | C20: No Limit set | D20: 0 - 30 | E20: 22 | F20: 6.36 | G20: mg/l
A21: Biological Oxygen Demand (BOD) | B21: Weekly | C21: No Limit set | D21: 0 - 5 | E21: 7 | F21: 2.34 | G21: mg/l
A22: Temperature | B22: Weekly | C22: No Limit set | D22: 0 - 15 | E22: 6.2 | F22: 3.6 | G22: °C
A23: Hydrocarbons | B23: Weekly | C23: No Limit set | D23: 0 - 30 | E23: 29 | F23: 10 | G23: ug/l

Sheet Air (periodic)
A1: =+'Cover Page'!$B$29 -> Annual Performance Report 2023 | E1: =+'Cover Page'!$B$33 -> Dunbar Energy Recovery Facility (ERF)
A3: Emissions to Air (periodically monitored)
A5: Summary of monitoring undertaken, standards used and compliance | P5: Notes:
A6: Periodic monitoring is undertaken twice per year (H1 and H2) by a specialist contractor to determine compliance of Line A1 andd A2 of the Energy Recovery Facility with the conditions specified in the PPC Permit. | P6: This should include an interpretation of any trends in addition to other comments
P7: Template may require adjustment for any bespoke monitoring requirements of permit - please also check that all default ELV values, reference periods and the stated oxygen reference value match those for your plant, and edit if necessary!
A10: Results of emissions to air that are periodically monitored - oxygen reference 11%
A11: Substance | C11: Ref. Period | D11: Emission Limit Value* | F11: Average | P11: User to add additional tables or columns as necessary, depending on whether quarterly or bi-annual reporting is required for the compliance year. A1, A2, A3 etc refers to Emission Point Number - add or delete columns, or re-label, as required.
F12: A1 | H12: A2
F13: Half 1 | G13: Half 2 | H13: Half 1 | I13: Half 2 | P13: * Denotes limits that were in force until 2 December 2023; from 3 December 2023 new ELVs applied based on the BAT-AEL range - refer to Permit for actual ELV.
A14: Particulates | C14: 1 hr | D14: 30 mg/m3 | F14: 0.74 | G14: 1.1 | H14: 0.12 | I14: 1.1
A15: Oxides of nitrogen | C15: Ave value | D15: 400 mg/m3 | F15: 236 | G15: 210 | H15: 251 | I15: 209
A16: Sulphur dioxide | C16: Ave value | D16: 200 mg/m3 | F16: 22.2 | G16: 32.9 | H16: 15.6 | I16: 26.8
A17: Carbon monoxide | C17: Ave value | D17: 100 mg/m3 | F17: 2 | G17: 3 | H17: 0.2 | I17: 2.6
A18: Total Organic Carbon | C18: Ave value | D18: 20 mg/m3 | F18: 0.23 | G18: 0.23 | H18: 0.93 | I18: 0.45
A19: Hydrogen chloride | C19: Ave value | D19: 60 mg/m3 | F19: 7.5 | G19: 6 | H19: 9 | I19: 9.2
A20: Hydrogen fluoride | C20: Ave value | D20: 4 mg/m3 | F20: 0.04 | G20: 0.06 | H20: 0.03 | I20: 0.03
A21: Ammonia | C21: Ave value | D21: Not applicable | F21: 0.09 | G21: 0.16 | H21: 0.07 | I21: 0.57
A22: Nitrous oxide | C22: Ave value | D22: Not applicable | F22: 0.3 | G22: 0.29 | H22: 0.27 | I22: 0.34
A23: PM10 | C23: Ave value | D23: Not applicable | F23: 0.11 | G23: 0.3 | H23: 0.05 | I23: 0.1
A24: PM2.5 | C24: Ave value | D24: Not applicable | F24: 0.28 | G24: 0.39 | H24: 0.02 | I24: 0.22
A25: Cd and Th and their compounds | C25: 0.5-8hrs | D25: 0.05 mg/m3 | F25: 0.00073 | G25: 0.00062 | H25: 0.00068 | I25: 0.00073
A26: Hg and its compounds | C26: 0.5-8hrs | D26: 0.05 mg/m3 | F26: 0.00053 | G26: 0.0013 | H26: 0.0021 | I26: 0.0015
A27: Sb, As, Pb, Cr, Co, Cu, Mn, Ni, V and their compounds | C27: 0.5-8hrs | D27: 0.5 mg/m3 | F27: 0.02 | G27: 0.019 | H27: 0.018 | I27: 0.01
A28: Dioxins & Furans (I-TEQ) | C28: 6-8hrs | D28: 0.1 ng/m3 | F28: 0.018 | G28: 0.0083 | H28: 0.0098 | I28: 0.012
A29: PCBs (WHO-TEQ Humans / Mammals) | C29: 6-8hrs | D29: None set ng/m3 | F29: 0.013 | G29: 0.0008 | H29: 0.00089 | I29: 0.001
A30: PCBs (WHO-TEQ Fish) | C30: 6-8hrs | D30: None set ng/m3 | F30: 6e-05 | G30: 3.8e-05 | H30: 4.2e-05 | I30: 4.5e-05
A31: PCBs (WHO-TEQ Birds) | C31: 6-8hrs | D31: None set ng/m3 | F31: 0.0022 | G31: 0.0016 | H31: 0.002 | I31: 0.0019
A32: Dioxins & Furans (WHO-TEQ Humans / Mammals) | C32: 6-8hrs | D32: None set ng/m3 | F32: 0.018 | G32: 0.0085 | H32: 0.01 | I32: 0.013
A33: Dioxins & Furans (WHO-TEQ Fish) | C33: 6-8hrs | D33: None set ng/m3 | F33: 0.018 | G33: 0.0089 | H33: 0.01 | I33: 0.013
A34: Dioxins & Furans (WHO-TEQ Birds) | C34: 6-8hrs | D34: None set ng/m3 | F34: 0.025 | G34: 0.012 | H34: 0.013 | I34: 0.017
A35: Anthanthrene | C35: 6-8hrs | D35: None set µg/m3 | F35: 0.01 | G35: 0.006 | H35: 0.01 | I35: 0.006
A36: Benzo(a)anthracene | C36: 6-8hrs | D36: None set µg/m3 | F36: 0.009 | G36: 0.008 | H36: 0.01 | I36: 0.071
A37: Benzo(a)pyrene | C37: 6-8hrs | D37: None set µg/m3 | F37: 0.01 | G37: 0.006 | H37: 0.01 | I37: 0.024
A38: Benzo(b)fluoranthene | C38: 6-8hrs | D38: None set µg/m3 | F38: 0.01 | G38: 0.008 | H38: 0.01 | I38: 0.04
A39: Benzo(b)naptho(2,1-d) thiophene | C39: 6-8hrs | D39: None set µg/m3 | F39: 0.009 | G39: 0.016 | H39: 0.01 | I39: 0.037
A40: Benzo(c)phenanthrene | C40: 6-8hrs | D40: None set µg/m3 | F40: 0.009 | G40: 0.006 | H40: 0.01 | I40: 0.031
A41: Benzo(ghi)perylene | C41: 6-8hrs | D41: None set µg/m3 | F41: 0.01 | G41: 0.01 | H41: 0.01 | I41: 0.026
A42: Benzo(k)fluoranthene | C42: 6-8hrs | D42: None set µg/m3 | F42: 0.009 | G42: 0.006 | H42: 0.01 | I42: 0.022
A43: Cholanthrene | C43: 6-8hrs | D43: None set µg/m3 | F43: 0.009 | G43: 0.006 | H43: 0.01 | I43: 0.006
A44: Chrysene | C44: 6-8hrs | D44: None set µg/m3 | F44: 0.012 | G44: 0.022 | H44: 0.01 | I44: 0.102
A45: Cyclopenta(cd)pyrene | C45: 6-8hrs | D45: None set µg/m3 | F45: 0.017 | G45: 0.006 | H45: 0.01 | I45: 0.085
A46: Dibenzo(ai)pyrene | C46: 6-8hrs | D46: None set µg/m3 | F46: 0.09 | G46: 0.006 | H46: 0.01 | I46: 0.006
A47: Dibenzo(ah)anthracene | C47: 6-8hrs | D47: None set µg/m3 | F47: 0.01 | G47: 0.006 | H47: 0.01 | I47: 0.006
A48: Fluoranthene | C48: 6-8hrs | D48: None set µg/m3 | F48: 0.476 | G48: 0.057 | H48: 0.218 | I48: 0.571
A49: Indeno(123-cd) pyrene | C49: 6-8hrs | D49: None set µg/m3 | F49: 0.01 | G49: 0.006 | H49: 0.01 | I49: 0.006
A50: Naphthalene | C50: 6-8hrs | D50: None set µg/m3 | F50: 0.617 | G50: 0.356 | H50: 0.835 | I50: 0.598
A51: Comments : All results were compliant with ELVs for calendar year 2023.

Sheet Air (CEMS)
A1: =+'Cover Page'!$B$29 -> Annual Performance Report 2023 | I1: =+'Cover Page'!$B$33 -> Dunbar Energy Recovery Facility (ERF)
A3: Emissions to Air (continously monitored)
N4: Notes:
A5: Summary of monitoring undertaken, standards used and compliance | N5: Template may require adjustment for any bespoke monitoring requirements of permit
A6: The parameters below are monitored continuously by the Continuous Emissions Monitoring System (CEMS) at Dunbar ERF. The hardware is supplied and maintained by SICK (UK) and the data handling software is supplied and maintained by Envirosoft.
N7: Please check that all default ELV values match those for your plant and edit if necessary!
N9: Report to minimum 1 decimal place, 2 decimal places if data readily available in DAHS.
A11: Results of emissions to air that are continuously monitored (maximum and average values for each line) - oxygen reference 11%
A12: Substance | B12: Reference Period | C12: Emission Limit Value* | D12: A1 | F12: A2 | N12: *Denotes limits that were in force until 2 December 2023; from 3 December 2023 new Daily Average ELVs applied based on the BAT-AEL range - refer to Permit for actual ELV.
D13: Max. | E13: Avg. | F13: Max. | G13: Avg.
A14: Oxides of nitrogen | B14: Daily mean | C14: 200 mg/m3 | D14: =NOx!O19 -> 181.5 | E14: =NOx!N19 -> 162.1 | F14: =NOx!O34 -> 187.8 | G14: =NOx!N34 -> 165.15
B15: ½ hourly mean | C15: 400 mg/m3 | D15: =NOx!M19 -> 237.2 | E15: =NOx!L19 -> 161.1166667 | F15: =NOx!M34 -> 220.8 | G15: =NOx!L34 -> 165.0583333
A16: Particulates | B16: Daily mean | C16: 10 mg/m3 | D16: =Particulates!O19 -> 1.3 | E16: =Particulates!N19 -> 0.708333333 | F16: =Particulates!O34 -> 6.3 | G16: =Particulates!N34 -> 0.5
B17: ½ hourly mean | C17: 30 mg/m3 | D17: =Particulates!M19 -> 28.5 | E17: =Particulates!L19 -> 0.75 | F17: =Particulates!O34 -> 6.3 | G17: =Particulates!L19 -> 0.75
A18: Total Organic Carbon | B18: Daily mean | C18: 10 mg/m3 | D18: =TOC!O19 -> 0.8 | E18: =TOC!N19 -> 0.283333333 | F18: =TOC!O34 -> 0.3 | G18: =TOC!N34 -> 0.075
B19: ½ hourly mean | C19: 20 mg/m3 | D19: =TOC!M19 -> 14.7 | E19: =TOC!L19 -> 0.325 | F19: =TOC!M34 -> 12.1 | G19: =TOC!L34 -> 0.091666667 | Q19: =NOx!O19 -> 181.5
A20: Hydrogen chloride | B20: Daily mean | C20: 10 mg/m3 | D20: =HCl!O19 -> 8.3 | E20: =HCl!N19 -> 5.091666667 | F20: =HCl!O34 -> 7.7 | G20: =HCl!N34 -> 5.658333333
B21: ½ hourly mean | C21: 60 mg/m3 | D21: =HCl!M19 -> 59.8 | E21: =HCl!L19 -> 5.1 | F21: =HCl!M34 -> 65.9 | G21: =HCl!L34 -> 5.666666667
A22: Sulphur dioxide | B22: Daily mean | C22: 50 mg/m3 | D22: ='SO2'!O19 -> 31.6 | E22: ='SO2'!N19 -> 20.83333333 | F22: ='SO2'!O34 -> 31.6 | G22: ='SO2'!N34 -> 19.20833333
B23: ½ hourly mean | C23: 200 mg/m3 | D23: ='SO2'!M19 -> 190.5 | E23: ='SO2'!L19 -> 20.83333333 | F23: ='SO2'!M34 -> 367.4 | G23: ='SO2'!L34 -> 19.225
A24: Carbon monoxide | B24: Daily mean | C24: 50 mg/m3 | D24: ='CO 95% 10 min'!Q22 -> 10 | E24: ='CO 95% 10 min'!P22 -> 2.058333333 | F24: ='CO 95% 10 min'!Q37 -> 17.2 | G24: ='CO 95% 10 min'!P37 -> 3.141666667
B25: 95%ile 10-min avg * | C25: 150 mg/m3 ** | D25: ='CO 95% 10 min'!M22 -> 18.35833333 | E25: ='CO 95% 10 min'!N22 -> 2.15 | F25: ='CO 95% 10 min'!M37 -> 32.88333333 | G25: ='CO 95% 10 min'!N37 -> 3.175
A26: Ammonia | B26: Daily mean | C26: See comments*** | D26: ='NH3'!O19 -> 3.6 | E26: ='NH3'!N19 -> 0.16 | F26: ='NH3'!O34 -> 3.4 | G26: ='NH3'!N34 -> 0.64 | N26: ***Ammonia: 1. Some Permits may have included ammonia ELVs predating the BAT review in which case insert the relevant ELV in Column C. 2. ELV may not have been specified from 3/12/2023 for Permits where SCR/SNCR is not carried out, in this case put 'Not applicable' in Column C. 3. Continuous monitoring data should be reported if it is a permit requirement irrespective of whether an ELV has been set.
A27: Comments :

Sheet HCl
A1: Annual Performance Report 2023 | E1: Dunbar Energy Recovery Facility (ERF)
A3: Monitoring of Hydrogen Chloride emissions | D3: Whole Installation | G3: See Notes in Cell Q3 | J3: Monitoring of Hydrogen Chloride emissions | N3: Per Combustion Line | Q3: Notes:
Q4: User to add logic to complete Whole installation, Table A5:G18. From the data in Per Combustion Line, Table J6:O79, subject to No. of lines installed
A5: mg/Nm3 | B5: 1/2 Hourly Reference Periods | E5: Daily Reference Periods
A6: 2023 | B6: 1/2 hourly HCl ELV | C6: Monthly 1/2 hourly mean | D6: Highest 1/2 hourly maximum | E6: Daily HCl ELV* | F6: Monthly daily mean | G6: Highest daily maximum | J6: 2023 | K6: mg/Nm3 | L6: Monthly 1/2 hourly mean | M6: Monthly 1/2 hourly maximum | N6: Monthly daily mean | O6: Monthly daily maximum
A7: Jan | B7: 60 | C7: 5.2 | D7: 30.8 | E7: 10 | F7: 5.2 | G7: 6.5 | J7: A1 | K7: Jan | L7: 5 | M7: 30.8 | N7: 5.1 | O7: 6.5
A8: Feb | B8: 60 | C8: 5.2 | D8: 12.3 | E8: 10 | F8: 5.2 | G8: 5.9 | K8: Feb | L8: 5.2 | M8: 7 | N8: 5.2 | O8: 5.5
A9: Mar | B9: 60 | C9: 4.6 | D9: 11.7 | E9: 10 | F9: 4.5 | G9: 5.8 | K9: Mar | L9: 4.2 | M9: 11.7 | N9: 4.2 | O9: 5.6 | Q9: Whole Installation table A5:G18:
A10: Apr | B10: 60 | C10: 5 | D10: 19.1 | E10: 10 | F10: 5.1 | G10: 5.9 | K10: Apr | L10: 4.8 | M10: 8.2 | N10: 4.8 | O10: 5.6 | Q10: Mean: for 1/2 hourly and daily periods calculate mean of values across all operational combustion lines for the month
A11: May | B11: 60 | C11: 5.1 | D11: 9.4 | E11: 10 | F11: 5 | G11: 5.8 | K11: May | L11: 4.8 | M11: 7.2 | N11: 4.8 | O11: 5.8
A12: Jun | B12: 60 | C12: 5.7 | D12: 48.1 | E12: 10 | F12: 5.7 | G12: 8.3 | K12: Jun | L12: 5.6 | M12: 48.1 | N12: 5.6 | O12: 8.3
A13: Jul | B13: 60 | C13: 5.6 | D13: 59.8 | E13: 10 | F13: 5.6 | G13: 6.6 | K13: Jul | L13: 5.5 | M13: 59.8 | N13: 5.4 | O13: 6 | Q13: Maximum: for 1/2 hourly and daily periods use the highest value across all operational combustion lines for the month
A14: Aug | B14: 60 | C14: 5.8 | D14: 11 | E14: 10 | F14: 5.8 | G14: 6.7 | K14: Aug | L14: 5.6 | M14: 8.1 | N14: 5.6 | O14: 6
A15: Sep | B15: 60 | C15: 5.9 | D15: 35.8 | E15: 10 | F15: 5.8 | G15: 7.5 | K15: Sep | L15: 5.4 | M15: 8.1 | N15: 5.3 | O15: 6.2
A16: Oct | B16: 60 | C16: 5.6 | D16: 9.7 | E16: 10 | F16: 5.6 | G16: 6.6 | K16: Oct | L16: 5 | M16: 8.2 | N16: 5 | O16: 6.1
A17: Nov | B17: 60 | C17: 5.3 | D17: 65.9 | E17: 10 | F17: 5.3 | G17: 7.7 | K17: Nov | L17: 4.5 | M17: 7.6 | N17: 4.5 | O17: 5.7
A18: Dec | B18: 60 | C18: 5.8 | D18: 29.7 | E18: 10 | F18: 5.9 | G18: 7.3 | K18: Dec | L18: 5.6 | M18: 7.7 | N18: 5.6 | O18: 6.5
E19: * ELV reduced to 8 mg/Nm3 on 3 December 2023 | K19: Annual | L19: 5.1 | M19: 59.8 | N19: 5.091666667 | O19: 8.3
J21: 2023 | K21: mg/Nm3 | L21: Monthly 1/2 hourly mean | M21: Monthly 1/2 hourly maximum | N21: Monthly daily mean | O21: Monthly daily maximum
J22: A2 | K22: Jan | L22: 5.3 | M22: 10.1 | N22: 5.3 | O22: 6
K23: Feb | L23: 5.2 | M23: 12.3 | N23: 5.2 | O23: 5.9
K24: Mar | L24: 4.9 | M24: 9.9 | N24: 4.8 | O24: 5.8
K25: Apr | L25: 5.3 | M25: 19.1 | N25: 5.3 | O25: 5.9
K26: May | L26: 5.4 | M26: 9.4 | N26: 5.4 | O26: 5.8
K27: Jun | L27: 5.7 | M27: 19.1 | N27: 5.7 | O27: 6.2
K28: Jul | L28: 5.7 | M28: 9.7 | N28: 5.7 | O28: 6.6
K29: Aug | L29: 6 | M29: 11 | N29: 6 | O29: 6.7
K30: Sep | L30: 6.3 | M30: 35.8 | N30: 6.3 | O30: 7.5
K31: Oct | L31: 6.1 | M31: 9.7 | N31: 6.1 | O31: 6.6
K32: Nov | L32: 6.1 | M32: 65.9 | N32: 6 | O32: 7.7
K33: Dec | L33: 6 | M33: 29.7 | N33: 6.1 | O33: 7.3
K34: Annual | L34: 5.666666667 | M34: 65.9 | N34: 5.658333333 | O34: 7.7
J36: 2023 | K36: mg/Nm3 | L36: Monthly 1/2 hourly mean | M36: Monthly 1/2 hourly maximum | N36: Monthly daily mean | O36: Monthly daily maximum
J37: A3 | K37: Jan
K38: Feb
K39: Mar
K40: Apr
K41: May
K42: Jun
K43: Jul
K44: Aug
K45: Sep
K46: Oct
K47: Nov
A48: Comments : Please include an explanation / interpretation of trends in the data reported | K48: Dec
K49: Annual | M49: 0 | O49: 0
J51: 2023 | K51: mg/Nm3 | L51: Monthly 1/2 hourly mean | M51: Monthly 1/2 hourly maximum | N51: Monthly daily mean | O51: Monthly daily maximum
J52: A4 | K52: Jan
K53: Feb
K54: Mar
K55: Apr
K56: May
K57: Jun
K58: Jul
K59: Aug
K60: Sep
K61: Oct
K62: Nov
K63: Dec
K64: Annual | M64: 0 | O64: 0
J66: 2023 | K66: mg/Nm3 | L66: Monthly 1/2 hourly mean | M66: Monthly 1/2 hourly maximum | N66: Monthly daily mean | O66: Monthly daily maximum
J67: A5 | K67: Jan
K68: Feb
K69: Mar
K70: Apr
K71: May
K72: Jun
K73: Jul
K74: Aug
K75: Sep
K76: Oct
K77: Nov
K78: Dec
K79: Annual | M79: 0 | O79: 0

Sheet SO2
A1: Annual Performance Report 2023 | E1: Dunbar Energy Recovery Facility (ERF)
A3: Monitoring of Sulphur dioxide emissions | D3: Whole Installation | G3: See Notes in Cell Q3 | J3: Monitoring of Sulphur dioxide emissions | N3: Per Combustion Line | Q3: Notes:
Q4: User to add logic to complete Whole installation, Table A5:G18. From the data in Per Combustion Line, Table J6:O79, subject to No. of lines installed
A5: mg/Nm3 | B5: 1/2 Hourly Reference Periods | E5: Daily Reference Periods
A6: 2023 | B6: 1/2 hourly SO2 ELV | C6: Monthly 1/2 hourly mean | D6: Highest 1/2 hourly maximum | E6: Daily SO2 ELV* | F6: Monthly daily mean | G6: Highest daily maximum | J6: 2023 | K6: mg/Nm3 | L6: Monthly 1/2 hourly mean | M6: Monthly 1/2 hourly maximum | N6: Monthly daily mean | O6: Monthly daily maximum
A7: Jan | B7: 200 | C7: 14.3 | D7: 34.7 | E7: 50 | F7: 14.4 | G7: 19.8 | J7: A1 | K7: Jan | L7: 13.5 | M7: 30.7 | N7: 13.6 | O7: 19.1
A8: Feb | B8: 200 | C8: 19.2 | D8: 96.5 | E8: 50 | F8: 19.1 | G8: 25.9 | K8: Feb | L8: 17 | M8: 34.1 | N8: 16.8 | O8: 23.3
A9: Mar | B9: 200 | C9: 22.6 | D9: 190.5 | E9: 50 | F9: 22.6 | G9: 31.6 | K9: Mar | L9: 21.3 | M9: 190.5 | N9: 21.3 | O9: 31.6 | Q9: Whole Installation table A5:G18:
A10: Apr | B10: 200 | C10: 22 | D10: 54.6 | E10: 50 | F10: 22 | G10: 27.1 | K10: Apr | L10: 22.4 | M10: 54.6 | N10: 22.4 | O10: 27.1 | Q10: Mean: for 1/2 hourly and daily periods calculate mean of values across all operational combustion lines for the month
A11: May | B11: 200 | C11: 21.8 | D11: 41.4 | E11: 50 | F11: 21.8 | G11: 27.8 | K11: May | L11: 22.7 | M11: 41.4 | N11: 22.7 | O11: 27.8
A12: Jun | B12: 200 | C12: 19.6 | D12: 53.7 | E12: 50 | F12: 19.6 | G12: 24.6 | K12: Jun | L12: 20.6 | M12: 45.4 | N12: 20.6 | O12: 24.6
A13: Jul | B13: 200 | C13: 20.5 | D13: 67.6 | E13: 50 | F13: 20.5 | G13: 27.1 | K13: Jul | L13: 22.1 | M13: 67.6 | N13: 22.1 | O13: 27.1 | Q13: Maximum: for 1/2 hourly and daily periods use the highest value across all operational combustion lines for the month
A14: Aug | B14: 200 | C14: 17.5 | D14: 38.7 | E14: 50 | F14: 17.5 | G14: 23.3 | K14: Aug | L14: 19.5 | M14: 38.7 | N14: 19.6 | O14: 23.3
A15: Sep | B15: 200 | C15: 17.8 | D15: 38.1 | E15: 50 | F15: 17.8 | G15: 26.4 | K15: Sep | L15: 20.6 | M15: 38.1 | N15: 20.6 | O15: 26.4
A16: Oct | B16: 200 | C16: 21.5 | D16: 367.4 | E16: 50 | F16: 21.4 | G16: 31.6 | K16: Oct | L16: 23.1 | M16: 119.6 | N16: 23 | O16: 29
A17: Nov | B17: 200 | C17: 22.6 | D17: 52.3 | E17: 50 | F17: 22.6 | G17: 29.3 | K17: Nov | L17: 25.1 | M17: 52.3 | N17: 25.1 | O17: 29.3
A18: Dec | B18: 200 | C18: 21.3 | D18: 40.5 | E18: 50 | F18: 21.3 | G18: 27.9 | K18: Dec | L18: 22.1 | M18: 35.4 | N18: 22.2 | O18: 27.9
E19: * ELV reduced to 40 mg/Nm3 on 3 December 2023 | K19: Annual | L19: 20.83333333 | M19: 190.5 | N19: 20.83333333 | O19: 31.6
J21: 2023 | K21: mg/Nm3 | L21: Monthly 1/2 hourly mean | M21: Monthly 1/2 hourly maximum | N21: Monthly daily mean | O21: Monthly daily maximum
J22: A2 | K22: Jan | L22: 15.1 | M22: 34.7 | N22: 15.2 | O22: 19.8
K23: Feb | L23: 21.4 | M23: 96.5 | N23: 21.4 | O23: 25.9
K24: Mar | L24: 23.8 | M24: 96 | N24: 23.8 | O24: 26.8
K25: Apr | L25: 21.5 | M25: 48 | N25: 21.6 | O25: 25
K26: May | L26: 20.9 | M26: 39.8 | N26: 20.9 | O26: 25.7
K27: Jun | L27: 18.5 | M27: 53.7 | N27: 18.5 | O27: 23
K28: Jul | L28: 18.8 | M28: 53.3 | N28: 18.8 | O28: 22.7
K29: Aug | L29: 15.5 | M29: 37.4 | N29: 15.4 | O29: 19.5
K30: Sep | L30: 14.9 | M30: 35.6 | N30: 14.9 | O30: 20.3
K31: Oct | L31: 19.8 | M31: 367.4 | N31: 19.7 | O31: 31.6
K32: Nov | L32: 20 | M32: 46.7 | N32: 20 | O32: 25.5
K33: Dec | L33: 20.5 | M33: 40.5 | N33: 20.3 | O33: 26.4
K34: Annual | L34: 19.225 | M34: 367.4 | N34: 19.20833333 | O34: 31.6
J36: 2023 | K36: mg/Nm3 | L36: Monthly 1/2 hourly mean | M36: Monthly 1/2 hourly maximum | N36: Monthly daily mean | O36: Monthly daily maximum
J37: A3 | K37: Jan
K38: Feb
K39: Mar
K40: Apr
K41: May
K42: Jun
K43: Jul
K44: Aug
K45: Sep
K46: Oct
K47: Nov
A48: Comments : Please include an explanation / interpretation of trends in the data reported | K48: Dec
K49: Annual | M49: 0 | O49: 0
J51: 2023 | K51: mg/Nm3 | L51: Monthly 1/2 hourly mean | M51: Monthly 1/2 hourly maximum | N51: Monthly daily mean | O51: Monthly daily maximum
J52: A4 | K52: Jan
K53: Feb
K54: Mar
K55: Apr
K56: May
K57: Jun
K58: Jul
K59: Aug
K60: Sep
K61: Oct
K62: Nov
K63: Dec
K64: Annual | M64: 0 | O64: 0
J66: 2023 | K66: mg/Nm3 | L66: Monthly 1/2 hourly mean | M66: Monthly 1/2 hourly maximum | N66: Monthly daily mean | O66: Monthly daily maximum
J67: A5 | K67: Jan
K68: Feb
K69: Mar
K70: Apr
K71: May
K72: Jun
K73: Jul
K74: Aug
K75: Sep
K76: Oct
K77: Nov
K78: Dec
K79: Annual | M79: 0 | O79: 0

Sheet NOx
A1: Annual Performance Report 2023 | E1: Dunbar Energy Recovery Facility (ERF)
A3: Monitoring of Oxides of Nitrogen emissions | D3: Whole Installation | G3: See Notes in Cell Q3 | J3: Monitoring of Oxides of Nitrogen emissions | N3: Per Combustion Line | Q3: Notes:
Q4: User to add logic to complete Whole installation, Table A5:G18. From the data in Per Combustion Line, Table J6:O79, subject to No. of lines installed
A5: mg/Nm3 | B5: 1/2 Hourly Reference Periods | E5: Daily Reference Periods
A6: 2023 | B6: 1/2 hourly NOx ELV | C6: Monthly 1/2 hourly mean | D6: Highest 1/2 hourly maximum | E6: Daily NOx ELV* | F6: Monthly daily mean | G6: Highest daily maximum | J6: 2023 | K6: mg/Nm3 | L6: Monthly 1/2 hourly mean | M6: Monthly 1/2 hourly maximum | N6: Monthly daily mean | O6: Monthly daily maximum
A7: Jan | B7: 400 | C7: 167.1 | D7: 220.8 | E7: 200 | F7: 167.4 | G7: 177 | J7: A1 | K7: Jan | L7: 163.8 | M7: 189.7 | N7: 164 | O7: 168.1
A8: Feb | B8: 400 | C8: 166.5 | D8: 219 | E8: 200 | F8: 166.7 | G8: 173.4 | K8: Feb | L8: 165 | M8: 189 | N8: 165.3 | O8: 168.4
A9: Mar | B9: 400 | C9: 166 | D9: 194.7 | E9: 200 | F9: 166.1 | G9: 172.6 | K9: Mar | L9: 164.7 | M9: 192.3 | N9: 164.9 | O9: 167.9 | Q9: Whole Installation table A5:G18:
A10: Apr | B10: 400 | C10: 160.8 | D10: 198.3 | E10: 200 | F10: 160.9 | G10: 172.5 | K10: Apr | L10: 162.2 | M10: 198.3 | N10: 162.2 | O10: 168.4 | Q10: Mean: for 1/2 hourly and daily periods calculate mean of values across all operational combustion lines for the month
A11: May | B11: 400 | C11: 165.2 | D11: 199.4 | E11: 200 | F11: 165.4 | G11: 175.5 | K11: May | L11: 161.2 | M11: 199.4 | N11: 161.2 | O11: 167.4
A12: Jun | B12: 400 | C12: 158.8 | D12: 206.1 | E12: 200 | F12: 158.8 | G12: 168.7 | K12: Jun | L12: 151.9 | M12: 197.6 | N12: 152 | O12: 163.8
A13: Jul | B13: 400 | C13: 163.6 | D13: 217.1 | E13: 200 | F13: 163.6 | G13: 187.8 | K13: Jul | L13: 160.8 | M13: 213.5 | N13: 160.8 | O13: 168.7 | Q13: Maximum: for 1/2 hourly and daily periods use the highest value across all operational combustion lines for the month
A14: Aug | B14: 400 | C14: 164 | D14: 215.9 | E14: 200 | F14: 164 | G14: 177.8 | K14: Aug | L14: 164.3 | M14: 200.1 | N14: 164.4 | O14: 169.2
A15: Sep | B15: 400 | C15: 165.9 | D15: 231.2 | E15: 200 | F15: 165.9 | G15: 171.2 | K15: Sep | L15: 154.7 | M15: 231.2 | N15: 165.7 | O15: 171.2
A16: Oct | B16: 400 | C16: 166.4 | D16: 237.2 | E16: 200 | F16: 166.5 | G16: 181.5 | K16: Oct | L16: 168.3 | M16: 237.2 | N16: 168.4 | O16: 181.5
A17: Nov | B17: 400 | C17: 159.4 | D17: 210.3 | E17: 200 | F17: 159.3 | G17: 174.2 | K17: Nov | L17: 159 | M17: 210.3 | N17: 158.9 | O17: 174.2
A18: Dec | B18: 400 | C18: 159.1 | D18: 219.1 | E18: 200 | F18: 159.3 | G18: 166.3 | K18: Dec | L18: 157.5 | M18: 219.1 | N18: 157.4 | O18: 162.5
E19: * ELV reduced to 180 mg/Nm3 on 3 December 2023 | K19: Annual | L19: 161.1166667 | M19: 237.2 | N19: 162.1 | O19: 181.5
J21: 2023 | K21: mg/Nm3 | L21: Monthly 1/2 hourly mean | M21: Monthly 1/2 hourly maximum | N21: Monthly daily mean | O21: Monthly daily maximum
J22: A2 | K22: Jan | L22: 170.4 | M22: 220.8 | N22: 170.7 | O22: 177
K23: Feb | L23: 168 | M23: 219 | N23: 168 | O23: 173.4
K24: Mar | L24: 167.2 | M24: 194.7 | N24: 167.2 | O24: 172.6
K25: Apr | L25: 159.3 | M25: 194.7 | N25: 159.5 | O25: 172.5
K26: May | L26: 169.2 | M26: 197.5 | N26: 169.5 | O26: 175.5
K27: Jun | L27: 165.6 | M27: 206.1 | N27: 165.6 | O27: 168.7
K28: Jul | L28: 166.4 | M28: 217.1 | N28: 166.4 | O28: 187.8
K29: Aug | L29: 163.6 | M29: 215.9 | N29: 163.6 | O29: 177.8
K30: Sep | L30: 166.1 | M30: 213.9 | N30: 166 | O30: 170.4
K31: Oct | L31: 164.5 | M31: 203.2 | N31: 164.5 | O31: 173.4
K32: Nov | L32: 159.8 | M32: 204.5 | N32: 159.7 | O32: 168.8
K33: Dec | L33: 160.6 | M33: 210.8 | N33: 161.1 | O33: 166.3
K34: Annual | L34: 165.0583333 | M34: 220.8 | N34: 165.15 | O34: 187.8
J36: 2023 | K36: mg/Nm3 | L36: Monthly 1/2 hourly mean | M36: Monthly 1/2 hourly maximum | N36: Monthly daily mean | O36: Monthly daily maximum
J37: A3 | K37: Jan
K38: Feb
K39: Mar
K40: Apr
K41: May
K42: Jun
K43: Jul
K44: Aug
K45: Sep
K46: Oct
K47: Nov
A48: Comments : Please include an explanation / interpretation of trends in the data reported | K48: Dec
K49: Annual | M49: 0 | O49: 0
J51: 2023 | K51: mg/Nm3 | L51: Monthly 1/2 hourly mean | M51: Monthly 1/2 hourly maximum | N51: Monthly daily mean | O51: Monthly daily maximum
J52: A4 | K52: Jan
K53: Feb
K54: Mar
K55: Apr
K56: May
K57: Jun
K58: Jul
K59: Aug
K60: Sep
K61: Oct
K62: Nov
K63: Dec
K64: Annual | M64: 0 | O64: 0
J66: 2023 | K66: mg/Nm3 | L66: Monthly 1/2 hourly mean | M66: Monthly 1/2 hourly maximum | N66: Monthly daily mean | O66: Monthly daily maximum
J67: A5 | K67: Jan
K68: Feb
K69: Mar
K70: Apr
K71: May
K72: Jun
K73: Jul
K74: Aug
K75: Sep
K76: Oct
K77: Nov
K78: Dec
K79: Annual | M79: 0 | O79: 0

Sheet TOC
A1: Annual Performance Report 2023 | E1: Dunbar Energy Recovery Facility (ERF)
A3: Monitoring of Total organic carbon emissions | D3: Whole Installation | G3: See Notes in Cell Q3 | J3: Monitoring of Total organic carbon emissions | N3: Per Combustion Line | Q3: Notes:
Q4: User to add logic to complete Whole installation, Table A5:G18. From the data in Per Combustion Line, Table J6:O79, subject to No. of lines installed
A5: mg/Nm3 | B5: 1/2 Hourly Reference Periods | E5: Daily Reference Periods
A6: 2023 | B6: 1/2 hourly TOC ELV | C6: Monthly 1/2 hourly mean | D6: Highest 1/2 hourly maximum | E6: Daily TOC ELV | F6: Monthly daily mean | G6: Highest daily maximum | J6: 2023 | K6: mg/Nm3 | L6: Monthly 1/2 hourly mean | M6: Monthly 1/2 hourly maximum | N6: Monthly daily mean | O6: Monthly daily maximum
A7: Jan | B7: 20 | C7: 0.3 | D7: 7.4 | E7: 10 | F7: 0.3 | G7: 0.7 | J7: A1 | K7: Jan | L7: 0.5 | M7: 5.1 | N7: 0.5 | O7: 0.7
A8: Feb | B8: 20 | C8: 0.4 | D8: 8.8 | E8: 10 | F8: 0.3 | G8: 0.7 | K8: Feb | L8: 0.6 | M8: 8.8 | N8: 0.5 | O8: 0.7
A9: Mar | B9: 20 | C9: 0.4 | D9: 3.8 | E9: 10 | F9: -0.3 | G9: 0.7 | K9: Mar | L9: 0.6 | M9: 3.8 | N9: 0.5 | O9: 0.7 | Q9: Whole Installation table A5:G18:
A10: Apr | B10: 20 | C10: 0.4 | D10: 12.1 | E10: 10 | F10: 0.3 | G10: 0.7 | K10: Apr | L10: 0.6 | M10: 6.9 | N10: 0.5 | O10: 0.7 | Q10: Mean: for 1/2 hourly and daily periods calculate mean of values across all operational combustion lines for the month
A11: May | B11: 20 | C11: 0.4 | D11: 5.9 | E11: 10 | F11: 0.3 | G11: 0.7 | K11: May | L11: 0.6 | M11: 4 | N11: 0.5 | O11: 0.7
A12: Jun | B12: 20 | C12: 0.3 | D12: 14.7 | E12: 10 | F12: 0.3 | G12: 0.8 | K12: Jun | L12: 0.5 | M12: 14.7 | N12: 0.5 | O12: 0.8
A13: Jul | B13: 20 | C13: 0.2 | D13: 9.3 | E13: 10 | F13: 0.15 | G13: 0.7 | K13: Jul | L13: 0.2 | M13: 9.3 | N13: 0.2 | O13: 0.7 | Q13: Maximum: for 1/2 hourly and daily periods use the highest value across all operational combustion lines for the month
A14: Aug | B14: 20 | C14: 0.05 | D14: 3.2 | E14: 10 | F14: 0.05 | G14: 0.2 | K14: Aug | L14: 0 | M14: 2.9 | N14: 0 | O14: 0.1
A15: Sep | B15: 20 | C15: 0.1 | D15: 4.5 | E15: 10 | F15: 0.05 | G15: 0.3 | K15: Sep | L15: 0 | M15: 4.5 | N15: 0 | O15: 0.3
A16: Oct | B16: 20 | C16: 0.05 | D16: 6.5 | E16: 10 | F16: 0 | G16: 0.2 | K16: Oct | L16: 0.1 | M16: 6.5 | N16: 0 | O16: 0.2
A17: Nov | B17: 20 | C17: 0.05 | D17: 6.5 | E17: 10 | F17: 0.05 | G17: 0.2 | K17: Nov | L17: 0.1 | M17: 3.1 | N17: 0.1 | O17: 0.2
A18: Dec | B18: 20 | C18: 0.1 | D18: 6.7 | E18: 10 | F18: 0.05 | G18: 0.2 | K18: Dec | L18: 0.1 | M18: 6.7 | N18: 0.1 | O18: 0.1
K19: Annual | L19: 0.325 | M19: 14.7 | N19: 0.283333333 | O19: 0.8
J21: 2023 | K21: mg/Nm3 | L21: Monthly 1/2 hourly mean | M21: Monthly 1/2 hourly maximum | N21: Monthly daily mean | O21: Monthly daily maximum
J22: A2 | K22: Jan | L22: 0.1 | M22: 7.4 | N22: 0.1 | O22: 0.3
K23: Feb | L23: 0.1 | M23: 4.3 | N23: 0.1 | O23: 0.2
K24: Mar | L24: 0.1 | M24: 3.2 | N24: 0.1 | O24: 0.2
K25: Apr | L25: 0.1 | M25: 12.1 | N25: 0.1 | O25: 0.3
K26: May | L26: 0.1 | M26: 5.9 | N26: 0.1 | O26: 0.2
K27: Jun | L27: 0.1 | M27: 0.8 | N27: 0.1 | O27: 0.2
K28: Jul | L28: 0.1 | M28: 5.9 | N28: 0.1 | O28: 0.3
K29: Aug | L29: 0.1 | M29: 3.2 | N29: 0.1 | O29: 0.2
K30: Sep | L30: 0.2 | M30: 2.2 | N30: 0.1 | O30: 0.3
K31: Oct | L31: 0 | M31: 2 | N31: 0 | O31: 0
K32: Nov | L32: 0 | M32: 1.1 | N32: 0 | O32: 0.2
K33: Dec | L33: 0.1 | M33: 5.2 | N33: 0 | O33: 0.2
K34: Annual | L34: 0.091666667 | M34: 12.1 | N34: 0.075 | O34: 0.3
J36: 2023 | K36: mg/Nm3 | L36: Monthly 1/2 hourly mean | M36: Monthly 1/2 hourly maximum | N36: Monthly daily mean | O36: Monthly daily maximum
J37: A3 | K37: Jan
K38: Feb
K39: Mar
K40: Apr
K41: May
K42: Jun
K43: Jul
K44: Aug
K45: Sep
K46: Oct
K47: Nov
A48: Comments : Please include an explanation / interpretation of trends in the data reported | K48: Dec
K49: Annual | M49: 0 | O49: 0
J51: 2023 | K51: mg/Nm3 | L51: Monthly 1/2 hourly mean | M51: Monthly 1/2 hourly maximum | N51: Monthly daily mean | O51: Monthly daily maximum
J52: A4 | K52: Jan
K53: Feb
K54: Mar
K55: Apr
K56: May
K57: Jun
K58: Jul
K59: Aug
K60: Sep
K61: Oct
K62: Nov
K63: Dec
K64: Annual | M64: 0 | O64: 0
J66: 2023 | K66: mg/Nm3 | L66: Monthly 1/2 hourly mean | M66: Monthly 1/2 hourly maximum | N66: Monthly daily mean | O66: Monthly daily maximum
J67: A5 | K67: Jan
K68: Feb
K69: Mar
K70: Apr
K71: May
K72: Jun
K73: Jul
K74: Aug
K75: Sep
K76: Oct
K77: Nov
K78: Dec
K79: Annual | M79: 0 | O79: 0

Sheet Particulates
A1: Annual Performance Report 2023 | E1: Dunbar Energy Recovery Facility (ERF)
A3: Monitoring of Particulate matter emissions | D3: Whole Installation | G3: See Notes in Cell Q3 | J3: Monitoring of Particulate matter emissions | N3: Per Combustion Line | Q3: Notes:
Q4: User to add logic to complete Whole installation, Table A5:G18. From the data in Per Combustion Line, Table J6:O79, subject to No. of lines installed
A5: mg/Nm3 | B5: 1/2 Hourly Reference Periods | E5: Daily Reference Periods
A6: 2023 | B6: 1/2 hourly PM ELV | C6: Monthly 1/2 hourly mean | D6: Highest 1/2 hourly maximum | E6: Daily PM ELV* | F6: Monthly daily mean | G6: Highest daily maximum | J6: 2023 | K6: mg/Nm3 | L6: Monthly 1/2 hourly mean | M6: Monthly 1/2 hourly maximum | N6: Monthly daily mean | O6: Monthly daily maximum
A7: Jan | B7: 30 | C7: 1.9 | D7: 10.8 | E7: 10 | F7: 1.8 | G7: 6.3 | J7: A1 | K7: Jan | L7: 0.8 | M7: 1.5 | N7: 0.7 | O7: 0.9
A8: Feb | B8: 30 | C8: 0.7 | D8: 2.7 | E8: 10 | F8: 0.6 | G8: 0.8 | K8: Feb | L8: 0.8 | M8: 1 | N8: 0.7 | O8: 0.8
A9: Mar | B9: 30 | C9: 0.5 | D9: 1.7 | E9: 10 | F9: 0.4 | G9: 0.8 | K9: Mar | L9: 0.7 | M9: 1.7 | N9: 0.7 | O9: 0.8 | Q9: Whole Installation table A5:G18:
A10: Apr | B10: 30 | C10: 0.5 | D10: 28.5 | E10: 10 | F10: 0.4 | G10: 1.3 | K10: Apr | L10: 0.8 | M10: 28.5 | N10: 0.7 | O10: 1.3 | Q10: Mean: for 1/2 hourly and daily periods calculate mean of values across all operational combustion lines for the month
A11: May | B11: 30 | C11: 0.4 | D11: 1.7 | E11: 10 | F11: 0.4 | G11: 0.9 | K11: May | L11: 0.7 | M11: 1.7 | N11: 0.7 | O11: 0.9
A12: Jun | B12: 30 | C12: 0.4 | D12: 1.3 | E12: 10 | F12: 0.4 | G12: 0.8 | K12: Jun | L12: 0.7 | M12: 1.3 | N12: 0.7 | O12: 0.8
A13: Jul | B13: 30 | C13: 0.5 | D13: 1.1 | E13: 10 | F13: 0.5 | G13: 0.8 | K13: Jul | L13: 0.8 | M13: 1.1 | N13: 0.8 | O13: 0.8 | Q13: Maximum: for 1/2 hourly and daily periods use the highest value across all operational combustion lines for the month
A14: Aug | B14: 30 | C14: 0.5 | D14: 1.8 | E14: 10 | F14: 0.5 | G14: 1 | K14: Aug | L14: 0.8 | M14: 1.8 | N14: 0.7 | O14: 1
A15: Sep | B15: 30 | C15: 0.5 | D15: 1.7 | E15: 10 | F15: 0.5 | G15: 0.8 | K15: Sep | L15: 0.7 | M15: 1.7 | N15: 0.7 | O15: 0.8
A16: Oct | B16: 30 | C16: 0.5 | D16: 2.2 | E16: 10 | F16: 0.5 | G16: 1 | K16: Oct | L16: 0.7 | M16: 2.2 | N16: 0.7 | O16: 1
A17: Nov | B17: 30 | C17: 0.6 | D17: 2 | E17: 10 | F17: 0.6 | G17: 1 | K17: Nov | L17: 0.7 | M17: 1.1 | N17: 0.7 | O17: 0.8
A18: Dec | B18: 30 | C18: 1 | D18: 16.8 | E18: 10 | F18: 0.9 | G18: 3.8 | K18: Dec | L18: 0.8 | M18: 2 | N18: 0.7 | O18: 1.1
E19: * ELV reduced to 5 mg/Nm3 on 3 December 2023 | K19: Annual | L19: 0.75 | M19: 28.5 | N19: 0.708333333 | O19: 1.3
J21: 2023 | K21: mg/Nm3 | L21: Monthly 1/2 hourly mean | M21: Monthly 1/2 hourly maximum | N21: Monthly daily mean | O21: Monthly daily maximum
J22: A2 | K22: Jan | L22: 3 | M22: 10.8 | N22: 2.9 | O22: 6.3
K23: Feb | L23: 0.5 | M23: 2.7 | N23: 0.5 | O23: 0.8
K24: Mar | L24: 0.2 | M24: 1.4 | N24: 0.1 | O24: 0.4
K25: Apr | L25: 0.1 | M25: 1.3 | N25: 0.1 | O25: 0.2
K26: May | L26: 0.1 | M26: 1 | N26: 0.1 | O26: 0.1
K27: Jun | L27: 0.1 | M27: 0.9 | N27: 0.1 | O27: 0.4
K28: Jul | L28: 0.1 | M28: 0.8 | N28: 0.1 | O28: 0.2
K29: Aug | L29: 0.2 | M29: 1.4 | N29: 0.2 | O29: 0.3
K30: Sep | L30: 0.2 | M30: 1.7 | N30: 0.2 | O30: 0.6
K31: Oct | L31: 0.2 | M31: 0.8 | N31: 0.2 | O31: 0.3
K32: Nov | L32: 0.4 | M32: 2 | N32: 0.4 | O32: 1
K33: Dec | L33: 1.2 | M33: 16.8 | N33: 1.1 | O33: 3.8
K34: Annual | L34: 0.525 | M34: 16.8 | N34: =SUM(N21:N33)/12 -> 0.5 | O34: 6.3
J36: 2023 | K36: mg/Nm3 | L36: Monthly 1/2 hourly mean | M36: Monthly 1/2 hourly maximum | N36: Monthly daily mean | O36: Monthly daily maximum
J37: A3 | K37: Jan
K38: Feb
K39: Mar
K40: Apr
K41: May
K42: Jun
K43: Jul
K44: Aug
K45: Sep
K46: Oct
K47: Nov
A48: Comments : Please include an explanation / interpretation of trends in the data reported | K48: Dec
K49: Annual | M49: 0 | O49: 0
J51: 2023 | K51: mg/Nm3 | L51: Monthly 1/2 hourly mean | M51: Monthly 1/2 hourly maximum | N51: Monthly daily mean | O51: Monthly daily maximum
J52: A4 | K52: Jan
K53: Feb
K54: Mar
K55: Apr
K56: May
K57: Jun
K58: Jul
K59: Aug
K60: Sep
K61: Oct
K62: Nov
K63: Dec
K64: Annual | M64: 0 | O64: 0
J66: 2023 | K66: mg/Nm3 | L66: Monthly 1/2 hourly mean | M66: Monthly 1/2 hourly maximum | N66: Monthly daily mean | O66: Monthly daily maximum
J67: A5 | K67: Jan
K68: Feb
K69: Mar
K70: Apr
K71: May
K72: Jun
K73: Jul
K74: Aug
K75: Sep
K76: Oct
K77: Nov
K78: Dec
K79: Annual | M79: 0 | O79: 0

Sheet CO 95% 10 min
A1: Annual Performance Report 2023 | E1: Dunbar Energy Recovery Facility (ERF)
A3: Monitoring of Carbon Monoxide (10-minute avg) | E3: Whole Installation | H3: See Notes in Cell S3 | J3: Monitoring of Carbon Monoxide (10-minute avg) | O3: Per Combustion Line | Q3: Notes: | S3: Notes:
A5: Please complete this tab for your plant if you have 10-minute average CO ELVs; otherwise, leave it blank and complete the CO 0.5 hourly tab
S7: User to add logic to complete Whole installation, Table A5:H18. From the data in Per Combustion Line, Table K6:Q79, subject to No. of lines installed
A8: mg/Nm3 | B8: 10-minute Reference Periods | F8: Daily Reference Periods
A9: 2023 | B9: 95%ile 10-min avg CO ELV | C9: 95%ile 10-min avg maximum | D9: Monthly CO 10-min avg mean | E9: 10-min avg maximum | F9: Daily CO ELV | G9: Monthly daily mean | H9: Highest daily maximum | K9: 2023 | L9: mg/Nm3 | M9: 95%ile 10-min avg maximum | N9: Monthly CO 10-min avg mean | O9: 10-min avg maximum | P9: Monthly daily mean | Q9: Monthly daily maximum
A10: Jan | B10: 150 | C10: 7 | D10: 1.3 | E10: 329.6 | F10: 50 | G10: 1.3 | H10: 3.7 | K10: A1 | L10: Jan | M10: 5.9 | N10: 1.5 | O10: 234.6 | P10: 1.5 | Q10: 3.7
A11: Feb | B11: 150 | C11: 9 | D11: 1.5 | E11: 354.1 | F11: 50 | G11: 1.4 | H11: 4.7 | L11: Feb | M11: 8.7 | N11: 1.6 | O11: 354.1 | P11: 1.4 | Q11: 4.7
A12: Mar | B12: 150 | C12: 12.3 | D12: 1.5 | E12: 288 | F12: 50 | G12: 1.3 | H12: 3.1 | L12: Mar | M12: 6.2 | N12: 1.6 | O12: 251.3 | P12: 1.6 | Q12: 3 | S12: Whole Installation table A5:H18:
A13: Apr | B13: 150 | C13: 45.4 | D13: 2.6 | E13: 381.1 | F13: 50 | G13: 2.5 | H13: 14.5 | L13: Apr | M13: 11.8 | N13: 1.9 | O13: 264.5 | P13: 1.8 | Q13: 3.8 | S13: Mean: for 10-min and daily periods use average of all operational combustion lines.
A14: May | B14: 150 | C14: 7.8 | D14: 1 | E14: 304.1 | F14: 50 | G14: 0.9 | H14: 4.1 | L14: May | M14: 7.4 | N14: 1.2 | O14: 299.7 | P14: 1.1 | Q14: 4.1
A15: Jun | B15: 150 | C15: 29.7 | D15: 1.4 | E15: 204.1 | F15: 50 | G15: 1.8 | H15: 5.6 | L15: Jun | M15: 22.8 | N15: 1.8 | O15: 187.1 | P15: 1.7 | Q15: 4.8
A16: Jul | B16: 150 | C16: 39.8 | D16: 2.7 | E16: 370.5 | F16: 50 | G16: 2.6 | H16: 9.1 | L16: Jul | M16: 8.1 | N16: 1.6 | O16: 315.6 | P16: 1.5 | Q16: 5.7 | S16: Maximum: for 10-min and daily periods use the highest of all operational combustion lines in any month.
A17: Aug | B17: 150 | C17: 43.5 | D17: 3 | E17: 273.4 | F17: 50 | G17: 2.9 | H17: 9.3 | L17: Aug | M17: 11 | N17: 1.7 | O17: 224.5 | P17: 1.7 | Q17: 3.8
A18: Sep | B18: 150 | C18: 63.2 | D18: 5.7 | E18: 269.2 | F18: 50 | G18: 5.7 | H18: 17.2 | L18: Sep | M18: 23.3 | N18: 2.5 | O18: 266.1 | P18: 2.4 | Q18: 7.8
A19: Oct | B19: 150 | C19: 55.8 | D19: 7.5 | E19: 366.8 | F19: 50 | G19: 3.7 | H19: 16.1 | L19: Oct | M19: 37.8 | N19: 2.8 | O19: 366.8 | P19: 2.6 | Q19: 7.3
A20: Nov | B20: 150 | C20: 44.3 | D20: 3.8 | E20: 207.3 | F20: 50 | G20: 3.8 | H20: 10 | L20: Nov | M20: 44.3 | N20: 3.8 | O20: 207.3 | P20: 3.7 | Q20: 10
A21: Dec | B21: 150 | C21: 40.4 | D21: 3.7 | E21: 295.6 | F21: 50 | G21: 3.6 | H21: 9.5 | L21: Dec | M21: 33 | N21: 3.8 | O21: 225.2 | P21: 3.7 | Q21: 9.5
L22: Annual | M22: 18.35833333 | N22: 2.15 | O22: 366.8 | P22: 2.058333333 | Q22: 10
K24: 2023 | L24: mg/Nm3 | M24: 95%ile 10-min avg maximum | N24: Monthly CO 10-min avg mean | O24: 10-min avg maximum | P24: Monthly daily mean | Q24: Monthly daily maximum
K25: A2 | L25: Jan | M25: 7 | N25: 1.1 | O25: 329.6 | P25: 1.1 | Q25: 3.2
L26: Feb | M26: 9 | N26: 1.3 | O26: 184.8 | P26: 1.3 | Q26: 3.2
L27: Mar | M27: 12.3 | N27: 1.1 | O27: 288 | P27: 1 | Q27: 3.1
L28: Apr | M28: 45.4 | N28: 3.2 | O28: 381.1 | P28: 3.2 | Q28: 14.5
L29: May | M29: 7.8 | N29: 0.7 | O29: 304.1 | P29: 0.7 | Q29: 2.3
L30: Jun | M30: 29.7 | N30: 1.9 | O30: 204.1 | P30: 1.8 | Q30: 5.6
L31: Jul | M31: 39.8 | N31: 3.7 | O31: 370.5 | P31: 3.6 | Q31: 9.1
L32: Aug | M32: 43.5 | N32: 4.2 | O32: 273.4 | P32: 4.1 | Q32: 9.3
L33: Sep | M33: 63.2 | N33: 8.9 | O33: 269.2 | P33: 8.9 | Q33: 17.2
L34: Oct | M34: 55.8 | N34: 4.7 | O34: 147.4 | P34: 4.7 | Q34: 16.1
L35: Nov | M35: 40.7 | N35: 3.8 | O35: 185.5 | P35: 3.8 | Q35: 8.6
L36: Dec | M36: 40.4 | N36: 3.5 | O36: 295.6 | P36: 3.5 | Q36: 8.4
L37: Annual | M37: 32.88333333 | N37: 3.175 | O37: 381.1 | P37: 3.141666667 | Q37: 17.2
A51: Comments : Please include an explanation / interpretation of trends in the data reported
A52: Environment Agency explanatory note: The 10-minute average ELV is based on the “95th percentile”. In this case this means that 95% of the 10 minute averages in the relevant 24-hour period (i.e. 137) must be below 150 mg/Nm3, and 5% (i.e. 7) are allowed to be any value above 150 mg/Nm3. Whilst we expect operators to minimise CO emissions at all times, it is perfectly acceptable for the value of the maximum 10-minute average to be above 150 mg/Nm3, provided the 95th percentile ELV has been met for that period.

Sheet NH3
A1: Annual Performance Report 2023 | E1: Dunbar Energy Recovery Facility (ERF)
A3: Monitoring of NH3 emissions | D3: Whole Installation | G3: See Notes in Cell Q3 | J3: Monitoring of NH3 emissions | N3: Per Combustion Line | Q3: Notes:
Q4: User to add logic to complete Whole installation, Table A5:G18. From the data in Per Combustion Line, Table J6:O79, subject to No. of lines installed
A5: mg/Nm3 | B5: 1/2 Hourly Reference Periods | E5: Daily Reference Periods
A6: 2023 | B6: 1/2 hourly NH3 ELV | C6: Monthly 1/2 hourly mean | D6: Highest 1/2 hourly maximum | E6: Daily NH3 ELV* | F6: Monthly daily mean | G6: Highest daily maximum | J6: 2023 | K6: mg/Nm3 | L6: Monthly 1/2 hourly mean | M6: Monthly 1/2 hourly maximum | N6: Monthly daily mean | O6: Monthly daily maximum
A7: Jan | B7: 60 | C7: =AVERAGE(L7,L22) -> 0.05 | D7: =MAX(M7,M22) -> 1.5 | E7: 10 | F7: =AVERAGE(N7,N22) -> 0.1 | G7: =MAX(O7,O22) -> 1.1 | J7: A1 | K7: Jan | L7: 0 | M7: 0.2 | N7: 0.1 | O7: 1.1
A8: Feb | B8: 60 | C8: =AVERAGE(L8,L23) -> 0.05 | D8: =MAX(M8,M23) -> 0.7 | E8: 10 | F8: =AVERAGE(N8,N23) -> 0.1 | G8: =MAX(O8,O23) -> 0.7 | K8: Feb | L8: 0 | M8: 0.2 | N8: 0.1 | O8: 0.7
A9: Mar | B9: 60 | C9: 0.1 | D9: 0.4 | E9: 10 | F9: 0.1 | G9: 0.7 | K9: Mar | L9: 0.1 | M9: 0.3 | N9: 0.1 | O9: 0.7 | Q9: Whole Installation table A5:G18:
A10: Apr | B10: 60 | C10: 0.15 | D10: 1.4 | E10: 10 | F10: 0.15 | G10: 0.9 | K10: Apr | L10: 0.2 | M10: 0.5 | N10: 0.2 | O10: 0.9 | Q10: Mean: for 1/2 hourly and daily periods calculate mean of values across all operational combustion lines for the month
A11: May | B11: 60 | C11: 0 | D11: 0.8 | E11: 10 | F11: 0.05 | G11: 0.4 | K11: May | L11: 0 | M11: 0.2 | N11: 0.1 | O11: 0.4
A12: Jun | B12: 60 | C12: 0.05 | D12: 1 | E12: 10 | F12: 0.05 | G12: 3.6 | K12: Jun | L12: 0.1 | M12: 0.3 | N12: 0.1 | O12: 3.6
A13: Jul | B13: 60 | C13: 0.2 | D13: 1.7 | E13: 10 | F13: 0.25 | G13: 1.2 | K13: Jul | L13: 0.1 | M13: 0.4 | N13: 0.2 | O13: 1.2 | Q13: Maximum: for 1/2 hourly and daily periods use the highest value across all operational combustion lines for the month
A14: Aug | B14: 60 | C14: 0.55 | D14: 4.3 | E14: 10 | F14: 0.55 | G14: 2.2 | K14: Aug | L14: 0.1 | M14: 0.4 | N14: 0.1 | O14: 0.9
A15: Sep | B15: 60 | C15: 0.75 | D15: 3.2 | E15: 10 | F15: 0.75 | G15: 2.2 | K15: Sep | L15: 0.2 | M15: 0.6 | N15: 0.2 | O15: 2
A16: Oct | B16: 60 | C16: 0.65 | D16: 4.7 | E16: 10 | F16: 0.65 | G16: 2.8 | K16: Oct | L16: 0.2 | M16: 0.4 | N16: 0.2 | O16: 1.2
A17: Nov | B17: 60 | C17: 0.85 | D17: 4.8 | E17: 10 | F17: 0.85 | G17: 3 | K17: Nov | L17: 0.2 | M17: 0.6 | N17: 0.2 | O17: 1.1
A18: Dec | B18: 60 | C18: 1.15 | D18: 5.9 | E18: 10 | F18: 1.2 | G18: 3.4 | K18: Dec | L18: 0.2 | M18: 0.8 | N18: 0.3 | O18: 1.6
E19: * ELV reduced to 8 mg/Nm3 on 3 December 2023 | K19: Annual | L19: 0.12 | M19: 0.8 | N19: 0.16 | O19: 3.6
J21: 2023 | K21: mg/Nm3 | L21: Monthly 1/2 hourly mean | M21: Monthly 1/2 hourly maximum | N21: Monthly daily mean | O21: Monthly daily maximum
J22: A2 | K22: Jan | L22: 0.1 | M22: 1.5 | N22: 0.1 | O22: 0.2
K23: Feb | L23: 0.1 | M23: 0.7 | N23: 0.1 | O23: 0.2
K24: Mar | L24: 0.1 | M24: 0.4 | N24: 0.1 | O24: 0.1
K25: Apr | L25: 0.1 | M25: 1.4 | N25: 0.1 | O25: 0.1
K26: May | L26: 0 | M26: 0.8 | N26: 0 | O26: 0.1
K27: Jun | L27: 0 | M27: 1 | N27: 0 | O27: 0
K28: Jul | L28: 0.3 | M28: 1.7 | N28: 0.3 | O28: 0.6
K29: Aug | L29: 1 | M29: 4.3 | N29: 1 | O29: 2.2
K30: Sep | L30: 1.3 | M30: 3.2 | N30: 1.3 | O30: 2.2
K31: Oct | L31: 1.1 | M31: 4.7 | N31: 1.1 | O31: 2.8
K32: Nov | L32: 1.5 | M32: 4.8 | N32: 1.5 | O32: 3
K33: Dec | L33: 2.1 | M33: 5.9 | N33: 2.1 | O33: 3.4
K34: Annual | L34: 0.64 | M34: 5.9 | N34: 0.64 | O34: 3.4
A48: Comments : Please include an explanation / interpretation of trends in the data reported
